{"text_format":"1","workbook":"xlsx","n_sheets":12,"sheets":["Home","STRCheck","SoilData","CropType","FieldCrop","VegetableCrop","OilseedCrop","FruitCrop","FertiSel","FertRiq","FertRiqFruit","Sheet1"],"not_rendered":{"charts":0,"images":14,"macros":1,"external_links":0,"defined_names":2,"comments":0,"pivot_tables":0},"unopened":[],"bounds":{"document_bytes":16777216,"sheet_cells":100000,"rows_first":2000,"rows_last":500,"rows_between":2000,"halvings":0,"cell_chars":16384,"cell_head_chars":4096},"cells_cut":0,"cells_raw":0,"read":"whole","date_system":"1900"}

{"sheet":"Home","index":0,"n_rows":0,"n_cols":0,"rows_kept":0,"cut":false,"hidden":false,"merged":[[11,2,11,6],[1,1,4,7]]}

{"sheet":"STRCheck","index":1,"n_rows":9,"n_cols":9,"rows_kept":9,"cut":false,"hidden":false,"merged":[[1,2,2,6],[6,2,7,6]]}
[]
[null,null,"Soil Test Avaiability Check"]
[]
[]
[]
[]
[null,null,"Do You Have A Soil Test Report?"]
[]
[null,null,null,null,null,null,null,null,1]

{"sheet":"SoilData","index":2,"n_rows":18,"n_cols":19,"rows_kept":18,"cut":false,"hidden":false,"merged":[[1,2,2,6],[4,2,4,3],[2,10,2,18]]}
[]
[null,null,"Soil Test Report"]
[null,null,null,null,null,null,null,null,null,null,"Nutrient Requirement"]
[null,null,null,null,null,null,null,null,null,null,"FYM t/ha","Vermi Compost t/ha","N, t/ha","P, t/ha","K, t/ha","Zn, ppm","B, ppm","S, t/ha","Lime"]
[null,null,"Nutrient",null,"Input Value","Unit","Level",null,null,"Rec Dose Nutri",5,3,80,40,20,5.25,1.575,0,400]
[null,null,"Nitrogen (N)",null,0,"kg/ha",{"$f":"IF(E6<281,\"LOW\",IF(E6>560,\"HIGH\",\"MEDIUM\"))","v":"LOW"},null,{"$f":"IF(G6=\"LOW\",1,IF(G6= \"MEDIUM\",2,3))","v":1},"Req Nutri",{"$f":"K5","v":5},{"$f":"L5","v":3},{"$f":"IF(I6=1,M5*1.25,IF(I6=2,M5,M5*0.75))","v":100},{"$f":"IF(I8=1,N5*1.25,IF(I8=2,N5,N5*0.75))","v":50},{"$f":"IF(I10=1,O5*1.25,IF(I10=2,O5,O5*0.75))","v":25},{"$f":"IF(I12=1,P5*1.25,IF(I12=2,P5,P5*0.75))","v":6.5625},{"$f":"IF(I14=1,Q5*1.25,IF(I14=2,Q5,Q5*0.75))","v":1.96875},{"$f":"IF(I18=1,R5*1.25,IF(I18=2,R5,R5*0.75))","v":0},{"$f":"IF(FieldCrop!I13=1,IF(I18=1,S5*1,IF(I18=2,0,S5*0)),S5)","v":400}]
[]
[null,null,"Phosphorous (P)",null,0,"kg/ha",{"$f":"IF(E8<34,\"LOW\",IF(E8>68,\"HIGH\",\"MEDIUM\"))","v":"LOW"},null,{"$f":"IF(G8=\"LOW\",1,IF(G8= \"MEDIUM\",2,3))","v":1}]
[null,null,null,null,null,null,null,null,null,null,null,null,null,"Nitrogen (N)","282-560"]
[null,null,"Potassium (K)",null,0,"kg/ha",{"$f":"IF(E10<108,\"LOW\",IF(E10>280,\"HIGH\",\"MEDIUM\"))","v":"LOW"},null,{"$f":"IF(G10=\"LOW\",1,IF(G10= \"MEDIUM\",2,3))","v":1},null,null,null,null,"Phosphorous (P)","34-68"]
[null,null,null,null,null,null,null,null,null,null,null,null,null,"Potassium (K)","108-280"]
[null,null,"Zink (Zn)",null,0,"ppm",{"$f":"IF(E12<0.6,\"LOW\",IF(E12>1,\"HIGH\",\"MEDIUM\"))","v":"LOW"},null,{"$f":"IF(G12=\"LOW\",1,IF(G12= \"MEDIUM\",2,3))","v":1},null,null,null,null,"Zink (Zn)","0.6-1"]
[null,null,null,null,null,null,null,null,null,null,null,null,null,"Boron (B)","0.25-0.5"]
[null,null,"Boron (B)",null,0,"ppm",{"$f":"IF(E14<0.25,\"LOW\",IF(E14>0.5,\"HIGH\",\"MEDIUM\"))","v":"LOW"},null,{"$f":"IF(G14=\"LOW\",1,IF(G14= \"MEDIUM\",2,3))","v":1},null,null,null,null,"pH","6.5-7.5"]
[]
[null,null,"Sulphur",null,0,"kg/ha",{"$f":"IF(E16<10,\"LOW\",IF(E16>20,\"HIGH\",\"MEDIUM\"))","v":"LOW"},null,{"$f":"IF(G16=\"LOW\",1,IF(G16= \"MEDIUM\",2,3))","v":1}]
[]
[null,null,"pH",null,0,"-",{"$f":"IF(E18<6.5,\"ACIDIC\",IF(E18>7.5,\"ALKALINE\",\"NORMAL\"))","v":"ACIDIC"},null,{"$f":"IF(G18=\"ACIDIC\",1,IF(G18= \"NORMAL\",2,3))","v":1}]

{"sheet":"CropType","index":3,"n_rows":5,"n_cols":4,"rows_kept":5,"cut":false,"hidden":false,"merged":[[4,3,5,7],[1,1,2,8]]}
[]
[null,"Select Crop Type"]
[]
[]
[null,null,null,"What type of crop you wish to grow?"]

{"sheet":"FieldCrop","index":4,"n_rows":127,"n_cols":24,"rows_kept":127,"cut":false,"hidden":false,"merged":[[1,1,1,7]]}
[]
[null,"Field Crop Inputs",null,null,null,null,null,null,null,null,null,{"$f":"LOOKUP(I9,K4:K21,L4:L19)","v":"Rice-Midland"},{"$f":"LOOKUP(I9,K4:K19,M4:M19)","v":5},{"$f":"LOOKUP(I9,K4:K19,N4:N19)","v":3},{"$f":"LOOKUP(I9,K4:K19,O4:O19)","v":80},{"$f":"LOOKUP(I9,K4:K19,P4:P19)","v":40},{"$f":"LOOKUP(I9,K4:K19,Q4:Q19)","v":20},{"$f":"LOOKUP(I9,K4:K19,R4:R19)","v":5.25},{"$f":"LOOKUP(I9,K4:K19,S4:S19)","v":1.575},{"$f":"LOOKUP(I9,K4:K19,T4:T19)","v":0},{"$f":"LOOKUP(I9,K4:K19,U4:U19)","v":0},{"$f":"LOOKUP(I9,K4:K19,V4:V19)","v":50},{"$f":"LOOKUP(I9,K4:K19,W4:W19)","v":25},{"$f":"LOOKUP(I9,K4:K19,X4:X19)","v":25}]
[null,null,"Field crop",null,null,null,null,null,null,null,null,"Crop","FYM t/ha","Vermi Compost t/ha","N, t/ha","P, t/ha","K, t/ha","Zn, ppm","B, ppm","S, t/ha","Before transplanting or at time of last ploughing","At time of sowing/transplanting","25- 30 days after sowing ","40-50 days days after sowing "]
[null,null,null,null,null,null,null,null,null,null,1,"None"]
[null,null,"Area",null,null,120,"Decimal",null,null,null,2,"Arhar",3,2,25,50,25,5.25,1.575,0,0,100,0,0]
[null,null,null,null,null,null,null,null,null,null,3,"Black gram",3,2,25,50,25,5.25,1.575,0,0,100,0,0]
[null,null,null,null,null,null,null,null,null,null,4,"Chick pea",3,2,25,50,25,5.25,1.575,0,0,100,0,0]
[null,null,null,null,null,null,null,null,null,null,5,"Cow pea",3,2,20,40,20,5.25,1.575,0,50,0,50,0]
[null,null,null,null,null,null,null,null,13,null,6,"Field pea",3,2,25,50,25,5.25,1.575,0,50,0,50,0]
[null,null,null,null,null,null,null,null,null,null,7,"Green gram",3,2,20,50,25,5.25,1.575,0,0,100,0,0]
[null,null,null,null,null,null,null,null,null,null,8,"Lentil",3,2,25,50,25,5.25,1.575,0,0,100,0,0]
[null,null,null,null,null,null,null,null,null,null,9,"Maize",5,3,120,60,40,5.25,1.575,0,0,50,50,0]
[null,null,null,null,null,null,null,null,null,null,10,"Millet",5,3,40,30,20,5.25,1.575,0,0,50,50,0]
[null,null,null,null,null,null,null,null,null,null,11,"Rice bean",3,3,20,40,20,5.25,1.575,0,0,100,0,0]
[null,null,null,null,null,null,null,null,null,null,12,"Rice-Lowland",5,3,120,60,40,5.25,1.575,0,0,50,25,25]
[null,null,null,null,null,null,null,null,null,null,13,"Rice-Midland",5,3,80,40,20,5.25,1.575,0,0,50,25,25]
[null,null,null,null,null,null,null,null,null,null,14,"Rice-Upland",5,3,40,20,20,5.25,1.575,0,0,50,25,25]
[null,null,null,null,null,null,null,null,null,null,15,"Wheat-Irrigated",5,3,120,60,40,5.25,1.575,0,0,50,25,25]
[null,null,null,null,null,null,null,null,null,null,16,"Wheat-unirrigated",5,3,60,30,20,5.25,1.575,0,0,50,50,0]
[]
[]
[]
[]
[]
[]
[]
[]
[]
[]
[]
[]
[]
[]
[]
[]
[]
[]
[]
[null,null,null,null,null,null,null,null,null,null,37,"Onion",null,null,80,26.184000000000001,66.408000000000001,5.25,1.575]
[]
[]
[null,null,null,null,null,null,null,null,null,null,null,"Mango (10 x10 m)",null,null,"Planting",30,2,1,5,100,50,100,10,10]
[null,null,null,null,null,null,null,null,null,null,null,null,null,null,"1-3 year",30,1.5,0,5,180,60,150,20,20]
[null,null,null,null,null,null,null,null,null,null,null,null,null,null,"4 year",40,1.65,0,5,270,95,200,35,35]
[null,null,null,null,null,null,null,null,null,null,null,null,null,null,"5 year",50,1.7999999999999998,0,5,360,130,250,50,50]
[null,null,null,null,null,null,null,null,null,null,null,null,null,null,"6 year",60,1.9499999999999997,0,5,450,165,300,65,65]
[null,null,null,null,null,null,null,null,null,null,null,null,null,null,"7 year",70,2.0999999999999996,0,5,540,200,350,80,80]
[null,null,null,null,null,null,null,null,null,null,null,null,null,null,"8 year",80,2.2499999999999996,0,5,630,235,400,95,95]
[null,null,null,null,null,null,null,null,null,null,null,null,null,null,"9 year",90,2.3999999999999995,0,5,720,270,450,110,110]
[null,null,null,null,null,null,null,null,null,null,null,null,null,null,"10 year",100,2.5499999999999994,0,5,810,305,500,125,125]
[null,null,null,null,null,null,null,null,null,null,null,null,null,null,"11 year",110,2.6999999999999993,0,5,900,340,550,140,140]
[null,null,null,null,null,null,null,null,null,null,null,null,null,null,"12 year",120,2.8499999999999992,0,5,990,375,600,155,155]
[null,null,null,null,null,null,null,null,null,null,null,null,null,null,"13 year",130,2.9999999999999991,0,5,1080,410,650,170,170]
[null,null,null,null,null,null,null,null,null,null,null,null,null,null,"14 year",140,3.149999999999999,0,5,1170,445,700,185,185]
[null,null,null,null,null,null,null,null,null,null,null,null,null,null,"15 year",150,3.2999999999999989,0,5,1260,480,750,200,200]
[null,null,null,null,null,null,null,null,null,null,null,null,null,null,"16+ year",160,3.4499999999999988,0,5,1350,515,800,215,215]
[null,null,null,null,null,null,null,null,null,null,null,"Litchi (10 x10 m)",null,null,"Planting",30,2,1,5,100,50,100,10,10]
[null,null,null,null,null,null,null,null,null,null,null,null,null,null,"1-3 year",30,2,0,5,230,60,150,20,20]
[null,null,null,null,null,null,null,null,null,null,null,null,null,null,"4 year",40,2.15,0,5,350,130,200,35,35]
[null,null,null,null,null,null,null,null,null,null,null,null,null,null,"5 year",50,2.2999999999999998,0,5,470,200,250,50,50]
[null,null,null,null,null,null,null,null,null,null,null,null,null,null,"6 year",60,2.4499999999999997,0,5,590,270,300,65,65]
[null,null,null,null,null,null,null,null,null,null,null,null,null,null,"7 year",70,2.5999999999999996,0,5,710,340,350,80,80]
[null,null,null,null,null,null,null,null,null,null,null,null,null,null,"8 year",80,2.7499999999999996,0,5,830,410,400,95,95]
[null,null,null,null,null,null,null,null,null,null,null,null,null,null,"9 year",90,2.8999999999999995,0,5,950,480,450,110,110]
[null,null,null,null,null,null,null,null,null,null,null,null,null,null,"10 year",100,3.0499999999999994,0,5,1070,550,500,125,125]
[null,null,null,null,null,null,null,null,null,null,null,null,null,null,"11 year",110,3.1999999999999993,0,5,1190,620,550,140,140]
[null,null,null,null,null,null,null,null,null,null,null,null,null,null,"12 year",120,3.3499999999999992,0,5,1310,690,600,155,155]
[null,null,null,null,null,null,null,null,null,null,null,null,null,null,"13 year",130,3.4999999999999991,0,5,1430,760,650,170,170]
[null,null,null,null,null,null,null,null,null,null,null,null,null,null,"14 year",140,3.649999999999999,0,5,1550,830,700,185,185]
[null,null,null,null,null,null,null,null,null,null,null,null,null,null,"15 year",150,3.7999999999999989,0,5,1670,900,750,200,200]
[null,null,null,null,null,null,null,null,null,null,null,null,null,null,"16+ year",160,3.9499999999999988,0,5,1790,970,800,215,215]
[null,null,null,null,null,null,null,null,null,null,null,"Guava (10 x10 m)",null,null,"Planting",20,1,1,5,80,130,100,10,10]
[null,null,null,null,null,null,null,null,null,null,null,null,null,null,"1 year",30,1.5,0,5,210,130,100,20,20]
[null,null,null,null,null,null,null,null,null,null,null,null,null,null,"2 year",30,1.5,0,5,210,130,100,20,20]
[null,null,null,null,null,null,null,null,null,null,null,null,null,null,"3 year",30,1.5,0,5,210,130,100,20,20]
[null,null,null,null,null,null,null,null,null,null,null,null,null,null,"4-10 year",60,3,0,5,420,260,200,50,50]
[null,null,null,null,null,null,null,null,null,null,null,null,null,null,"11+ year",100,4,0,5,840,520,400,100,100]
[null,null,null,null,null,null,null,null,null,null,null,"Sapota (7 x 8 m)",null,null,"Planting",30,2,1,5,50,50,50,10,10]
[null,null,null,null,null,null,null,null,null,null,null,null,null,null,"1 year",30,1.5,0,5,90,55,45,20,20]
[null,null,null,null,null,null,null,null,null,null,null,null,null,null,"2 year",40,1.65,0,5,180,110,90,40,40]
[null,null,null,null,null,null,null,null,null,null,null,null,null,null,"3 year",50,1.7999999999999998,0,5,270,165,135,60,60]
[null,null,null,null,null,null,null,null,null,null,null,null,null,null,"4 year",60,1.9499999999999997,0,5,360,220,180,80,80]
[null,null,null,null,null,null,null,null,null,null,null,null,null,null,"5 year",70,2.0999999999999996,0,5,450,275,225,100,100]
[null,null,null,null,null,null,null,null,null,null,null,null,null,null,"6 year",80,2.2499999999999996,0,5,540,330,270,120,120]
[null,null,null,null,null,null,null,null,null,null,null,null,null,null,"7 year",90,2.3999999999999995,0,5,630,385,315,140,140]
[null,null,null,null,null,null,null,null,null,null,null,null,null,null,"8 year",100,2.5499999999999994,0,5,720,440,360,160,160]
[null,null,null,null,null,null,null,null,null,null,null,null,null,null,"9 year",100,3,0,5,810,495,405,180,180]
[null,null,null,null,null,null,null,null,null,null,null,null,null,null,"10+ year",100,4,0,5,900,550,450,200,200]
[null,null,null,null,null,null,null,null,null,null,null,"Aonla (8 x 10 m)",null,null,"Planting",30,1,1,5,50,50,50,10,10]
[null,null,null,null,null,null,null,null,null,null,null,null,null,null,"1 year",30,1.5,0,5,175,110,170,20,20]
[null,null,null,null,null,null,null,null,null,null,null,null,null,null,"2 year",35,1.65,0,5,350,220,340,40,40]
[null,null,null,null,null,null,null,null,null,null,null,null,null,null,"3 year",40,1.7999999999999998,0,5,525,330,510,60,60]
[null,null,null,null,null,null,null,null,null,null,null,null,null,null,"4 year",45,1.9499999999999997,0,5,700,440,680,80,80]
[null,null,null,null,null,null,null,null,null,null,null,null,null,null,"5 year",50,2.0999999999999996,0,5,875,550,850,100,100]
[null,null,null,null,null,null,null,null,null,null,null,null,null,null,"6 year",55,2.2499999999999996,0,5,1050,660,1020,120,120]
[null,null,null,null,null,null,null,null,null,null,null,null,null,null,"7 year",60,2.3999999999999995,0,5,1225,770,1190,140,140]
[null,null,null,null,null,null,null,null,null,null,null,null,null,null,"8 year",65,2.5499999999999994,0,5,1400,880,1360,160,160]
[null,null,null,null,null,null,null,null,null,null,null,null,null,null,"9 year",70,2.6999999999999993,0,5,1575,990,1530,180,180]
[null,null,null,null,null,null,null,null,null,null,null,null,null,null,"10+ year",100,4,0,5,1750,1100,1700,200,200]
[null,null,null,null,null,null,null,null,null,null,null,"Orange  (5 x 5 m)",null,null,"Planting",30,1,1,5,0,100,0,10,10]
[null,null,null,null,null,null,null,null,null,null,null,null,null,null,"1 year",30,1.5,0,5,130,52,60,10,10]
[null,null,null,null,null,null,null,null,null,null,null,null,null,null,"2 year",35,1.65,0,5,262,104,120,20,20]
[null,null,null,null,null,null,null,null,null,null,null,null,null,null,"3 year",40,1.7999999999999998,0,5,394,156,180,30,30]
[null,null,null,null,null,null,null,null,null,null,null,null,null,null,"4 year",45,1.9499999999999997,0,5,526,208,240,40,40]
[null,null,null,null,null,null,null,null,null,null,null,null,null,null,"5 year",50,2.0999999999999996,0,5,658,260,300,50,50]
[null,null,null,null,null,null,null,null,null,null,null,null,null,null,"6 year",55,2.2499999999999996,0,5,790,312,360,60,60]
[null,null,null,null,null,null,null,null,null,null,null,null,null,null,"7 year",60,2.3999999999999995,0,5,922,364,420,70,70]
[null,null,null,null,null,null,null,null,null,null,null,null,null,null,"8 year",65,2.5499999999999994,0,5,1054,416,480,80,80]
[null,null,null,null,null,null,null,null,null,null,null,null,null,null,"9 year",70,2.6999999999999993,0,5,1186,468,540,90,90]
[null,null,null,null,null,null,null,null,null,null,null,null,null,null,"10+ year",100,4,0,5,1318,520,600,100,100]
[null,null,null,null,null,null,null,null,null,null,null,"Ber (8 x 8m)",null,null,"Planting",50,1,1,5,0,100,0,10,10]
[null,null,null,null,null,null,null,null,null,null,null,null,null,null,"1 year",10,1.5,0,5,173,122,80,10,10]
[null,null,null,null,null,null,null,null,null,null,null,null,null,null,"2 year",20,1.5,0,5,346,244,160,20,20]
[null,null,null,null,null,null,null,null,null,null,null,null,null,null,"3 year",25,1.5,0,5,870,590,200,30,30]
[null,null,null,null,null,null,null,null,null,null,null,null,null,null,"4 year",25,1.5,0,5,870,590,200,30,30]
[null,null,null,null,null,null,null,null,null,null,null,null,null,null,"5+ year",30,3,0,5,962,610,250,50,50]
[null,null,null,null,null,null,null,null,null,null,null,"Peach (5 x 5m)",null,null,"Planting",30,1,1,5,120,87,67,10,10]
[null,null,null,null,null,null,null,null,null,null,null,null,null,null,"1 year",10,1.5,0,5,120,87,67,10,10]
[null,null,null,null,null,null,null,null,null,null,null,null,null,null,"2 year",20,1.65,0,5,240,174,134,20,20]
[null,null,null,null,null,null,null,null,null,null,null,null,null,null,"3 year",30,1.7999999999999998,0,5,360,261,201,30,30]
[null,null,null,null,null,null,null,null,null,null,null,null,null,null,"4 year",40,1.9499999999999997,0,5,480,348,268,40,40]
[null,null,null,null,null,null,null,null,null,null,null,null,null,null,"5 year",50,2.0999999999999996,0,5,600,435,335,50,50]
[null,null,null,null,null,null,null,null,null,null,null,null,null,null,"6+ year",60,3,0,5,720,522,402,60,60]
[null,null,null,null,null,null,null,null,null,null,null,"Cashew (7 x 8m)",null,null,"Planting",15,1,1,5,0,100,0,10,10]
[null,null,null,null,null,null,null,null,null,null,null,null,null,null,"1 year",15,1.5,0,5,170,80,70,10,10]
[null,null,null,null,null,null,null,null,null,null,null,null,null,null,"2 year",30,2.5,0,5,340,160,140,20,20]
[null,null,null,null,null,null,null,null,null,null,null,null,null,null,"3+ year",40,3,0,5,910,240,200,50,50]

{"sheet":"VegetableCrop","index":5,"n_rows":21,"n_cols":24,"rows_kept":21,"cut":false,"hidden":false,"merged":[[1,2,1,6]]}
[]
[null,null,"Vegetable Crop Inputs",null,null,null,null,null,null,null,null,{"$f":"LOOKUP(I4,K4:K21,L4:L21)","v":"Cabbage"},{"$f":"LOOKUP(I4,K4:K21,M4:M21)","v":20},{"$f":"LOOKUP(I4,K4:K21,N4:N21)","v":5},{"$f":"LOOKUP(I4,K4:K21,O4:O21)","v":200},{"$f":"LOOKUP(I4,K4:K21,P4:P21)","v":35},{"$f":"LOOKUP(I4,K4:K21,Q4:Q21)","v":50},{"$f":"LOOKUP(I4,K4:K21,R4:R21)","v":5.25},{"$f":"LOOKUP(I4,K4:K21,S4:S21)","v":1.575},{"$f":"LOOKUP(I4,K4:K21,T4:T21)","v":0},{"$f":"LOOKUP(I4,K4:K21,U4:U21)","v":0},{"$f":"LOOKUP(I4,K4:K21,V4:V21)","v":50},{"$f":"LOOKUP(I4,K4:K21,W4:W21)","v":25},{"$f":"LOOKUP(I4,K4:K21,X4:X21)","v":25}]
[null,null,null,null,null,null,null,null,null,null,null,"Crop","FYM t/ha","Vermi Compost t/ha","N, t/ha","P, t/ha","K, t/ha","Zn, ppm","B, ppm","S, t/ha","Before transplanting or at time of last ploughing","At time of sowing/transplanting","25- 30 days after sowing ","40-50 days days after sowing "]
[null,null,null,null,null,null,null,null,2,null,1,"None"]
[null,null,"Vegetable crop",null,null,null,null,null,null,null,2,"Cabbage",20,5,200,35,50,5.25,1.575,0,0,50,25,25]
[null,null,null,null,null,null,null,null,null,null,3,"Cauliflower",20,5,150,26,50,5.25,1.575,0,0,50,25,25]
[null,null,null,null,null,null,null,null,null,null,4,"Brinjal",20,5,120,26,50,5.25,1.575,0,33.299999999999997,0,33.299999999999997,33.299999999999997]
[null,null,"Area",null,null,50,"Decimal",null,null,null,5,"Chilli",20,5,60,22,42,5.25,1.575,0,33.299999999999997,0,33.299999999999997,33.299999999999997]
[null,null,null,null,null,null,null,null,null,null,6,"Capsicum",20,5,60,44,42,5.25,1.575,0,33.299999999999997,0,33.299999999999997,33.299999999999997]
[null,null,null,null,null,null,null,null,null,null,7,"Tomato",20,5,120,26,50,5.25,1.575,0,33.299999999999997,0,33.299999999999997,33.299999999999997]
[null,null,null,null,null,null,null,null,null,null,8,"Okra",20,5,120,35,50,5.25,1.575,0,0,50,50,0]
[null,null,null,null,null,null,null,null,null,null,9,"French bean",20,5,60,22,42,5.25,1.575,0,50,0,50,0]
[null,null,null,null,null,null,null,null,null,null,10,"Carrot",20,5,60,22,62,5.25,1.575,0,0,50,0,50]
[null,null,null,null,null,null,null,null,null,null,11,"Radish",20,5,80,26,50,5.25,1.575,0,0,50,50,0]
[null,null,null,null,null,null,null,null,null,null,12,"Cucumber",20,5,50,17,33,5.25,1.575,0,0,50,50,0]
[null,null,null,null,null,null,null,null,null,null,13,"Ridgegourd",20,5,50,26,42,5.25,1.575,0,50,0,50,0]
[null,null,null,null,null,null,null,null,null,null,14,"Pointed gourd",20,5,120,26,42,5.25,1.575,0,33.33,0,33.33,33.33]
[null,null,null,null,null,null,null,null,null,null,15,"Bottle gourd",20,5,50,26,42,5.25,1.575,0,0,50,50,0]
[null,null,null,null,null,null,null,null,null,null,16,"Bitter Gourd",20,5,50,26,42,5.25,1.575,0,0,50,50,0]
[null,null,null,null,null,null,null,null,null,null,17,"Potato",20,5,125,39,75,5.25,1.575,0,0,50,50,0]
[null,null,null,null,null,null,null,null,null,null,18,"Onion",20,5,80,26,66,5.25,1.575,0,0,50,50,0]

{"sheet":"OilseedCrop","index":6,"n_rows":13,"n_cols":24,"rows_kept":13,"cut":false,"hidden":false,"merged":[[1,2,2,6]]}
[]
[null,null,"Oilseed Crop Inputs"]
[null,null,null,null,null,null,null,null,null,null,null,{"$f":"LOOKUP(I6,K5:K18,L5:L18)","v":"Mustard"},{"$f":"LOOKUP(I6,K5:K13,M6:M13)","v":3},{"$f":"LOOKUP(I6,K5:K13,N6:N13)","v":2},{"$f":"LOOKUP(I6,K5:K13,O5:O13)","v":50},{"$f":"LOOKUP(I6,K5:K13,P5:P13)","v":25},{"$f":"LOOKUP(I6,K5:K13,Q5:Q13)","v":25},{"$f":"LOOKUP(I6,K5:K13,R5:R13)","v":5.25},{"$f":"LOOKUP(I6,K5:K13,S5:S13)","v":1.575},{"$f":"LOOKUP(I6,K5:K13,T5:T13)","v":20},{"$f":"LOOKUP(I6,K5:K13,U5:U13)","v":0},{"$f":"LOOKUP(I6,K5:K13,V5:V13)","v":50},{"$f":"LOOKUP(I6,K5:K13,W5:W13)","v":50},{"$f":"LOOKUP(I6,K5:K13,X5:X13)","v":0}]
[null,null,null,null,null,null,null,null,null,null,null,"Crop","FYM t/ha","Vermi Compost t/ha","N, t/ha","P, t/ha","K, t/ha","Zn, ppm","B, ppm","S, t/ha","Before transplanting or at time of last ploughing","At time of sowing/transplanting","25- 30 days after sowing ","40-50 days days after sowing "]
[null,null,null,null,null,null,null,null,null,null,1,"None"]
[null,null,"Oilseed Crop",null,null,null,null,null,4,null,2,"Linseed irrigated",3,2,50,30,20,5.25,1.575,20,0,50,50,0]
[null,null,null,null,null,null,null,null,null,null,3,"Linseed unirrigated",3,2,30,20,20,5.25,1.575,20,0,50,50,0]
[null,null,null,null,null,null,null,null,null,null,4,"Mustard",3,3,50,25,25,5.25,1.575,20,0,50,50,0]
[null,null,"Area",null,null,100,"Decimal",null,null,null,5,"Soyabean",3,2,25,50,20,5.25,1.575,40,0,100,0,0]
[null,null,null,null,null,null,null,null,null,null,6,"Groundnuts ",3,2,25,50,20,5.25,1.575,40,0,100,0,0]
[null,null,null,null,null,null,null,null,null,null,7,"Til",3,2,40,20,20,5.25,1.575,0,0,50,50,0]
[null,null,null,null,null,null,null,null,null,null,8,"Niger (surguja)",3,2,20,20,20,5.25,1.575,0,0,100,0,0]
[null,null,null,null,null,null,null,null,null,null,9,"Sunflower",3,2,40,50,25,5.25,1.575,25,0,100,0,0]

{"sheet":"FruitCrop","index":7,"n_rows":157,"n_cols":29,"rows_kept":157,"cut":false,"hidden":false,"merged":[[1,2,2,6]]}
[]
[null,null,"Fruit Crop Inputs"]
[null,null,null,null,null,null,null,null,null,{"$f":"CONCATENATE(J6,J8)","v":"Ber (8 x 8m)4 year"},null,null,null,null,null,null,{"$f":"J3","v":"Ber (8 x 8m)4 year"},{"$f":"J8","v":"4 year"},{"$f":"INDEX($S$5:$S$157,MATCH($Q$3,O5:O157,0)*1)","v":64},{"$f":"INDEX($T$5:$T$157,MATCH($Q$3,O5:O157,0)*1)","v":25},{"$f":"INDEX($U$5:$U$157,MATCH($Q$3,O5:O157,0)*1)","v":1.5},{"$f":"INDEX($V$5:$V$157,MATCH($Q$3,O5:O157,0)*1)","v":0},{"$f":"INDEX($W$5:$W$157,MATCH($Q$3,O5:O157,0)*1)","v":5},{"$f":"INDEX($X$5:$X$157,MATCH($Q$3,O5:O157,0)*1)","v":870},{"$f":"INDEX($Y$5:$Y$157,MATCH($Q$3,O5:O157,0)*1)","v":590},{"$f":"INDEX($Z$5:$Z$157,MATCH($Q$3,O5:O157,0)*1)","v":200},{"$f":"INDEX($AA$5:$AA$157,MATCH($Q$3,O5:O157,0)*1)","v":30},{"$f":"INDEX($AB$5:$AB$157,MATCH($Q$3,O5:O157,0)*1)","v":30},{"$f":"INDEX($AC$5:$AC$157,MATCH($Q$3,O5:O157,0)*1)","v":"Apply full dose of FYM, ½ dose of urea, DAP, MOP, zinc sulphate, borax in the month of June-July at a distance of 100 cm from trunk around the tree in a trench of 15 cm depth. Another ½ dose of urea in November-December."}]
[null,null,null,null,null,null,null,null,null,null,null,null,null,null,null,null,null,null,"Area per plant","FYM (kg)","Neem/Karanj cake (kg)","Bone meal (kg)","Lime (kg)","Urea (g)","DAP (g)","MOP (g)","Zinc sulphate (g)","Borax (g)"]
[null,null,null,null,null,null,null,null,null,null,1,"Planting",1,"Mango (10 x10 m)",{"$f":"CONCATENATE(Q5,R5)","v":"Mango (10 x10 m)Planting"},null,"Mango (10 x10 m)","Planting",100,30,2,1,5,100,50,100,10,10,"In pit of size of 90cm x 90cm x 90 cm, add and mix  FYM,  neem or karanj cake, bone meal and  lime with top soil from the pit and fill the pit at the start of rain. After 2-3 rains, plant the saplings with the addition of 100g urea, 50 g DAP, 100g MOP, 10 g zinc sulphate and 10 g borax"]
[null,null,"Crop",null,null,null,null,null,7,{"$f":"LOOKUP(I6,M5:M13,N5:N13)","v":"Ber (8 x 8m)"},2,"1 year",2,"Litchi (10 x10 m)","Mango (10 x10 m)1 year",null,"Mango (10 x10 m)","1 year",100,30,1.5,0,5,180,60,150,20,20,"Apply recommended dose of fertilizers at a distance of 45 cm from trunk around the tree in a trench of 30 cm depth in the month of June."]
[null,null,null,null,null,null,null,null,null,null,3,"2 year",3,"Guava (10 x10 m)","Mango (10 x10 m)2 year",null,"Mango (10 x10 m)","2 year",100,30,1.5,0,5,180,60,150,20,20,"Apply recommended dose of fertilizers at a distance of 45 cm from trunk around the tree in a trench of 30 cm depth in the month of June."]
[null,null,null,null,null,null,null,null,5,{"$f":"LOOKUP(I8,K5:K21,L5:L21)","v":"4 year"},4,"3 year",4,"Sapota (7 x 8 m)","Mango (10 x10 m)3 year",null,"Mango (10 x10 m)","3 year",100,30,1.5,0,5,180,60,150,20,20,"Apply recommended dose of fertilizers at a distance of 45 cm from trunk around the tree in a trench of 30 cm depth in the month of June."]
[null,null,"Age of Plants",null,null,null,null,null,null,null,5,"4 year",5,"Aonla (8 x 10 m)","Mango (10 x10 m)4 year",null,"Mango (10 x10 m)","4 year",100,40,1.65,0,5,270,95,200,35,35,"Apply recommended dose of fertilizers at a distance of 45 cm from trunk around the tree in a trench of 30 cm depth in the month of June."]
[null,null,null,null,null,null,null,null,null,null,6,"5 year",6,"Orange  (5 x 5 m)","Mango (10 x10 m)5 year",null,"Mango (10 x10 m)","5 year",100,50,1.7999999999999998,0,5,360,130,250,50,50,"Apply full dose of FYM, karanja cake, zinc sulphate, borax, lime, 50 % each of urea, DAP, MOP in June; Apply remaining 50 % urea, DAP, MOP in September. "]
[null,null,null,null,null,null,null,null,null,null,7,"6 year",7,"Ber (8 x 8m)","Mango (10 x10 m)6 year",null,"Mango (10 x10 m)","6 year",100,60,1.9499999999999997,0,5,450,165,300,65,65,"Apply full dose of FYM, karanja cake, zinc sulphate, borax, lime, 50 % each of urea, DAP, MOP in June; Apply remaining 50 % urea, DAP, MOP in September. "]
[null,null,"Area",null,null,120,"Decimal",null,null,null,8,"7 year",8,"Peach (5 x 5m)","Mango (10 x10 m)7 year",null,"Mango (10 x10 m)","7 year",100,70,2.0999999999999996,0,5,540,200,350,80,80,"Apply full dose of FYM, karanja cake, zinc sulphate, borax, lime, 50 % each of urea, DAP, MOP in June; Apply remaining 50 % urea, DAP, MOP in September. "]
[null,null,null,null,null,null,null,null,null,null,9,"8 year",9,"Cashew (7 x 8m)","Mango (10 x10 m)8 year",null,"Mango (10 x10 m)","8 year",100,80,2.2499999999999996,0,5,630,235,400,95,95,"Apply full dose of FYM, karanja cake, zinc sulphate, borax, lime, 50 % each of urea, DAP, MOP in June; Apply remaining 50 % urea, DAP, MOP in September. "]
[null,null,null,null,null,null,null,null,null,null,10,"9 year",null,null,"Mango (10 x10 m)9 year",null,"Mango (10 x10 m)","9 year",100,90,2.3999999999999995,0,5,720,270,450,110,110,"Apply full dose of FYM, karanja cake, zinc sulphate, borax, lime, 50 % each of urea, DAP, MOP in June; Apply remaining 50 % urea, DAP, MOP in September. "]
[null,null,null,null,null,null,null,null,null,null,11,"10 year",null,null,"Mango (10 x10 m)10 year",null,"Mango (10 x10 m)","10 year",100,100,2.5499999999999994,0,5,810,305,500,125,125,"Apply full dose of FYM, karanja cake, zinc sulphate, borax, lime, 50 % each of urea, DAP, MOP in June; Apply remaining 50 % urea, DAP, MOP in September. "]
[null,null,null,null,null,null,null,null,null,null,12,"11 year",null,null,"Mango (10 x10 m)11 year",null,"Mango (10 x10 m)","11 year",100,110,2.6999999999999993,0,5,900,340,550,140,140,"Apply full dose of FYM, karanja cake, zinc sulphate, borax, lime, 50 % each of urea, DAP, MOP in June; Apply remaining 50 % urea, DAP, MOP in September. "]
[null,null,null,null,null,null,null,null,null,null,13,"12 year",null,null,"Mango (10 x10 m)12 year",null,"Mango (10 x10 m)","12 year",100,120,2.8499999999999992,0,5,990,375,600,155,155,"Apply full dose of FYM, karanja cake, zinc sulphate, borax, lime, 50 % each of urea, DAP, MOP in June; Apply remaining 50 % urea, DAP, MOP in September. "]
[null,null,null,null,null,null,null,null,null,null,14,"13 year",null,null,"Mango (10 x10 m)13 year",null,"Mango (10 x10 m)","13 year",100,130,2.9999999999999991,0,5,1080,410,650,170,170,"Apply full dose of FYM, karanja cake, zinc sulphate, borax, lime, 50 % each of urea, DAP, MOP in June; Apply remaining 50 % urea, DAP, MOP in September. "]
[null,null,null,null,null,null,null,null,null,null,15,"14 year",null,null,"Mango (10 x10 m)14 year",null,"Mango (10 x10 m)","14 year",100,140,3.149999999999999,0,5,1170,445,700,185,185,"Apply full dose of FYM, karanja cake, zinc sulphate, borax, lime, 50 % each of urea, DAP, MOP in June; Apply remaining 50 % urea, DAP, MOP in September. "]
[null,null,null,null,null,null,null,null,null,null,16,"15 year",null,null,"Mango (10 x10 m)15 year",null,"Mango (10 x10 m)","15 year",100,150,3.2999999999999989,0,5,1260,480,750,200,200,"Apply full dose of FYM, karanja cake, zinc sulphate, borax, lime, 50 % each of urea, DAP, MOP in June; Apply remaining 50 % urea, DAP, MOP in September. "]
[null,null,null,null,null,null,null,null,null,null,17,"16 year",null,null,"Mango (10 x10 m)16 year",null,"Mango (10 x10 m)","16 year",100,160,3.4499999999999988,0,5,1350,515,800,215,215,"Apply full dose of FYM, karanja cake, zinc sulphate, borax, lime, 50 % each of urea, DAP, MOP in June; Apply remaining 50 % urea, DAP, MOP in September. "]
[null,null,null,null,null,null,null,null,null,null,null,null,null,null,"Litchi (10 x10 m)Planting",null,"Litchi (10 x10 m)","Planting",100,30,2,1,5,100,50,100,10,10,"In pits of size of 90cm x 90cm x 90 cm, add and mix  FYM,  neem or karanj cake, bone meal,  lime with top soil of dug out pit and fill the pit at the start of rain. After 2-3 rains, plant the saplings with the addition of 100g urea, 50 g DAP, 100g MOP, 10 g zinc sulphate and 10 g borax"]
[null,null,null,null,null,null,null,null,null,null,null,null,null,null,"Litchi (10 x10 m)1 year",null,"Litchi (10 x10 m)","1 year",100,30,2,0,5,230,60,150,20,20,"Apply all the fertilizer at a distance of 45 cm from trunk around the tree in a trench of 30 cm depth in the month of June."]
[null,null,null,null,null,null,null,null,null,null,null,null,null,null,"Litchi (10 x10 m)2 year",null,"Litchi (10 x10 m)","2 year",100,30,2,0,5,230,60,150,20,20,"Apply all the fertilizer at a distance of 45 cm from trunk around the tree in a trench of 30 cm depth in the month of June."]
[null,null,null,null,null,null,null,null,null,null,null,null,null,null,"Litchi (10 x10 m)3 year",null,"Litchi (10 x10 m)","3 year",100,30,2,0,5,230,60,150,20,20,"Apply all the fertilizer at a distance of 45 cm from trunk around the tree in a trench of 30 cm depth in the month of June."]
[null,null,null,null,null,null,null,null,null,null,null,null,null,null,"Litchi (10 x10 m)4 year",null,"Litchi (10 x10 m)","4 year",100,40,2.15,0,5,350,130,200,35,35,"Apply all the fertilizer at a distance of 45 cm from trunk around the tree in a trench of 30 cm depth in the month of June."]
[null,null,null,null,null,null,null,null,null,null,null,null,null,null,"Litchi (10 x10 m)5 year",null,"Litchi (10 x10 m)","5 year",100,50,2.2999999999999998,0,5,470,200,250,50,50,"Apply 1/3rd urea during fruit development (pea size) with irrigation. Apply full dose FYM, karanj cake, DAP, MOP, Apply remaining 2/3rd of urea, zinc sulphate, borax, lime in June-July by making 60 cm deep trench around the tree 1.5-2.0 m away from the trunk during harvesting and pruning."]
[null,null,null,null,null,null,null,null,null,null,null,null,null,null,"Litchi (10 x10 m)6 year",null,"Litchi (10 x10 m)","6 year",100,60,2.4499999999999997,0,5,590,270,300,65,65,"Apply 1/3rd urea during fruit development (pea size) with irrigation. Apply full dose FYM, karanj cake, DAP, MOP, Apply remaining 2/3rd of urea, zinc sulphate, borax, lime in June-July by making 60 cm deep trench around the tree 1.5-2.0 m away from the trunk during harvesting and pruning."]
[null,null,null,null,null,null,null,null,null,null,null,null,null,null,"Litchi (10 x10 m)7 year",null,"Litchi (10 x10 m)","7 year",100,70,2.5999999999999996,0,5,710,340,350,80,80,"Apply 1/3rd urea during fruit development (pea size) with irrigation. Apply full dose FYM, karanj cake, DAP, MOP, Apply remaining 2/3rd of urea, zinc sulphate, borax, lime in June-July by making 60 cm deep trench around the tree 1.5-2.0 m away from the trunk during harvesting and pruning."]
[null,null,null,null,null,null,null,null,null,null,null,null,null,null,"Litchi (10 x10 m)8 year",null,"Litchi (10 x10 m)","8 year",100,80,2.7499999999999996,0,5,830,410,400,95,95,"Apply 1/3rd urea during fruit development (pea size) with irrigation. Apply full dose FYM, karanj cake, DAP, MOP, Apply remaining 2/3rd of urea, zinc sulphate, borax, lime in June-July by making 60 cm deep trench around the tree 1.5-2.0 m away from the trunk during harvesting and pruning."]
[null,null,null,null,null,null,null,null,null,null,null,null,null,null,"Litchi (10 x10 m)9 year",null,"Litchi (10 x10 m)","9 year",100,90,2.8999999999999995,0,5,950,480,450,110,110,"Apply 1/3rd urea during fruit development (pea size) with irrigation. Apply full dose FYM, karanj cake, DAP, MOP, Apply remaining 2/3rd of urea, zinc sulphate, borax, lime in June-July by making 60 cm deep trench around the tree 1.5-2.0 m away from the trunk during harvesting and pruning."]
[null,null,null,null,null,null,null,null,null,null,null,null,null,null,"Litchi (10 x10 m)10 year",null,"Litchi (10 x10 m)","10 year",100,100,3.0499999999999994,0,5,1070,550,500,125,125,"Apply 1/3rd urea during fruit development (pea size) with irrigation. Apply full dose FYM, karanj cake, DAP, MOP, Apply remaining 2/3rd of urea, zinc sulphate, borax, lime in June-July by making 60 cm deep trench around the tree 1.5-2.0 m away from the trunk during harvesting and pruning."]
[null,null,null,null,null,null,null,null,null,null,null,null,null,null,"Litchi (10 x10 m)11 year",null,"Litchi (10 x10 m)","11 year",100,110,3.1999999999999993,0,5,1190,620,550,140,140,"Apply 1/3rd urea during fruit development (pea size) with irrigation. Apply full dose FYM, karanj cake, DAP, MOP, Apply remaining 2/3rd of urea, zinc sulphate, borax, lime in June-July by making 60 cm deep trench around the tree 1.5-2.0 m away from the trunk during harvesting and pruning."]
[null,null,null,null,null,null,null,null,null,null,null,null,null,null,"Litchi (10 x10 m)12 year",null,"Litchi (10 x10 m)","12 year",100,120,3.3499999999999992,0,5,1310,690,600,155,155,"Apply 1/3rd urea during fruit development (pea size) with irrigation. Apply full dose FYM, karanj cake, DAP, MOP, Apply remaining 2/3rd of urea, zinc sulphate, borax, lime in June-July by making 60 cm deep trench around the tree 1.5-2.0 m away from the trunk during harvesting and pruning."]
[null,null,null,null,null,null,null,null,null,null,null,null,null,null,"Litchi (10 x10 m)13 year",null,"Litchi (10 x10 m)","13 year",100,130,3.4999999999999991,0,5,1430,760,650,170,170,"Apply 1/3rd urea during fruit development (pea size) with irrigation. Apply full dose FYM, karanj cake, DAP, MOP, Apply remaining 2/3rd of urea, zinc sulphate, borax, lime in June-July by making 60 cm deep trench around the tree 1.5-2.0 m away from the trunk during harvesting and pruning."]
[null,null,null,null,null,null,null,null,null,null,null,null,null,null,"Litchi (10 x10 m)14 year",null,"Litchi (10 x10 m)","14 year",100,140,3.649999999999999,0,5,1550,830,700,185,185,"Apply 1/3rd urea during fruit development (pea size) with irrigation. Apply full dose FYM, karanj cake, DAP, MOP, Apply remaining 2/3rd of urea, zinc sulphate, borax, lime in June-July by making 60 cm deep trench around the tree 1.5-2.0 m away from the trunk during harvesting and pruning."]
[null,null,null,null,null,null,null,null,null,null,null,null,null,null,"Litchi (10 x10 m)15 year",null,"Litchi (10 x10 m)","15 year",100,150,3.7999999999999989,0,5,1670,900,750,200,200,"Apply 1/3rd urea during fruit development (pea size) with irrigation. Apply full dose FYM, karanj cake, DAP, MOP, Apply remaining 2/3rd of urea, zinc sulphate, borax, lime in June-July by making 60 cm deep trench around the tree 1.5-2.0 m away from the trunk during harvesting and pruning."]
[null,null,null,null,null,null,null,null,null,null,null,null,null,null,"Litchi (10 x10 m)16 year",null,"Litchi (10 x10 m)","16 year",100,160,3.9499999999999988,0,5,1790,970,800,215,215,"Apply 1/3rd urea during fruit development (pea size) with irrigation. Apply full dose FYM, karanj cake, DAP, MOP, Apply remaining 2/3rd of urea, zinc sulphate, borax, lime in June-July by making 60 cm deep trench around the tree 1.5-2.0 m away from the trunk during harvesting and pruning."]
[null,null,null,null,null,null,null,null,null,null,null,null,null,null,"Guava (10 x10 m)Planting",null,"Guava (10 x10 m)","Planting",100,20,1,1,5,80,130,100,10,10,"Dig pits of size of 60cm x 60cm x 60 cm.  Add and mix  FYM,  neem or karanj cake, bone meal,  lime with top soil of dug out pit and fill the pit at the start of rain. After 2-3 rains, plant the saplings with addition of 80g urea, 130 g DAP, 100g MOP, 10 g zinc sulphate, 10 g borax."]
[null,null,null,null,null,null,null,null,null,null,null,null,null,null,"Guava (10 x10 m)1 year",null,"Guava (10 x10 m)","1 year",100,30,1.5,0,5,210,130,100,20,20,"Apply all the fertilizer at a distance of 45 cm from trunk around the tree in a trench of 15 cm depth in the month of June-July."]
[null,null,null,null,null,null,null,null,null,null,null,null,null,null,"Guava (10 x10 m)2 year",null,"Guava (10 x10 m)","2 year",100,30,1.5,0,5,210,130,100,20,20,"Apply all the fertilizer at a distance of 45 cm from trunk around the tree in a trench of 15 cm depth in the month of June-July."]
[null,null,null,null,null,null,null,null,null,null,null,null,null,null,"Guava (10 x10 m)3 year",null,"Guava (10 x10 m)","3 year",100,30,1.5,0,5,210,130,100,20,20,"Apply all the fertilizer at a distance of 45 cm from trunk around the tree in a trench of 15 cm depth in the month of June-July."]
[null,null,null,null,null,null,null,null,null,null,null,null,null,null,"Guava (10 x10 m)4 year",null,"Guava (10 x10 m)","4 year",100,60,3,0,5,420,260,200,50,50,"Apply full dose of FYM, DAP, MOP and ½ dose of urea in June-July one meter away from the trunk in 15cm deep trench and cover with soil. Apply remaining ½ dose of urea in October and irrigate."]
[null,null,null,null,null,null,null,null,null,null,null,null,null,null,"Guava (10 x10 m)5 year",null,"Guava (10 x10 m)","5 year",100,60,3,0,5,420,260,200,50,50,"Apply full dose of FYM, DAP, MOP and ½ dose of urea in June-July one meter away from the trunk in 15cm deep trench and cover with soil. Apply remaining ½ dose of urea in October and irrigate."]
[null,null,null,null,null,null,null,null,null,null,null,null,null,null,"Guava (10 x10 m)6 year",null,"Guava (10 x10 m)","6 year",100,60,3,0,5,420,260,200,50,50,"Apply full dose of FYM, DAP, MOP and ½ dose of urea in June-July one meter away from the trunk in 15cm deep trench and cover with soil. Apply remaining ½ dose of urea in October and irrigate."]
[null,null,null,null,null,null,null,null,null,null,null,null,null,null,"Guava (10 x10 m)7 year",null,"Guava (10 x10 m)","7 year",100,60,3,0,5,420,260,200,50,50,"Apply full dose of FYM, DAP, MOP and ½ dose of urea in June-July one meter away from the trunk in 15cm deep trench and cover with soil. Apply remaining ½ dose of urea in October and irrigate."]
[null,null,null,null,null,null,null,null,null,null,null,null,null,null,"Guava (10 x10 m)8 year",null,"Guava (10 x10 m)","8 year",100,60,3,0,5,420,260,200,50,50,"Apply full dose of FYM, DAP, MOP and ½ dose of urea in June-July one meter away from the trunk in 15cm deep trench and cover with soil. Apply remaining ½ dose of urea in October and irrigate."]
[null,null,null,null,null,null,null,null,null,null,null,null,null,null,"Guava (10 x10 m)9 year",null,"Guava (10 x10 m)","9 year",100,60,3,0,5,420,260,200,50,50,"Apply full dose of FYM, DAP, MOP and ½ dose of urea in June-July one meter away from the trunk in 15cm deep trench and cover with soil. Apply remaining ½ dose of urea in October and irrigate."]
[null,null,null,null,null,null,null,null,null,null,null,null,null,null,"Guava (10 x10 m)10 year",null,"Guava (10 x10 m)","10 year",100,60,3,0,5,420,260,200,50,50,"Apply full dose of FYM, DAP, MOP and ½ dose of urea in June-July one meter away from the trunk in 15cm deep trench and cover with soil. Apply remaining ½ dose of urea in October and irrigate."]
[null,null,null,null,null,null,null,null,null,null,null,null,null,null,"Guava (10 x10 m)11 year",null,"Guava (10 x10 m)","11 year",100,100,4,0,5,840,520,400,100,100,"Apply full dose of FYM, DAP, MOP and ½ dose of urea in June-July one meter away from the trunk in 15cm deep trench and cover with soil. Apply remaining ½ dose of urea in October and irrigate."]
[null,null,null,null,null,null,null,null,null,null,null,null,null,null,"Guava (10 x10 m)12 year",null,"Guava (10 x10 m)","12 year",100,100,4,0,5,840,520,400,100,100,"Apply full dose of FYM, DAP, MOP and ½ dose of urea in June-July one meter away from the trunk in 15cm deep trench and cover with soil. Apply remaining ½ dose of urea in October and irrigate."]
[null,null,null,null,null,null,null,null,null,null,null,null,null,null,"Guava (10 x10 m)13 year",null,"Guava (10 x10 m)","13 year",100,100,4,0,5,840,520,400,100,100,"Apply full dose of FYM, DAP, MOP and ½ dose of urea in June-July one meter away from the trunk in 15cm deep trench and cover with soil. Apply remaining ½ dose of urea in October and irrigate."]
[null,null,null,null,null,null,null,null,null,null,null,null,null,null,"Guava (10 x10 m)14 year",null,"Guava (10 x10 m)","14 year",100,100,4,0,5,840,520,400,100,100,"Apply full dose of FYM, DAP, MOP and ½ dose of urea in June-July one meter away from the trunk in 15cm deep trench and cover with soil. Apply remaining ½ dose of urea in October and irrigate."]
[null,null,null,null,null,null,null,null,null,null,null,null,null,null,"Guava (10 x10 m)15 year",null,"Guava (10 x10 m)","15 year",100,100,4,0,5,840,520,400,100,100,"Apply full dose of FYM, DAP, MOP and ½ dose of urea in June-July one meter away from the trunk in 15cm deep trench and cover with soil. Apply remaining ½ dose of urea in October and irrigate."]
[null,null,null,null,null,null,null,null,null,null,null,null,null,null,"Guava (10 x10 m)16 year",null,"Guava (10 x10 m)","16 year",100,100,4,0,5,840,520,400,100,100,"Apply full dose of FYM, DAP, MOP and ½ dose of urea in June-July one meter away from the trunk in 15cm deep trench and cover with soil. Apply remaining ½ dose of urea in October and irrigate."]
[null,null,null,null,null,null,null,null,null,null,null,null,null,null,"Sapota (7 x 8 m)Planting",null,"Sapota (7 x 8 m)","Planting",56,30,2,1,5,50,50,50,10,10,"Dig pits of size 90cm x 90cm x 90 cm, Add and mix  FYM,  neem or karanj cake, bone meal,  lime with top soil of dug out pit and fill the pit at the start of rain. After 2-3 rains, plant the saplings with the addition of 50g urea, 50g DAP, 50g MOP, 10 g zinc sulphate, 10 g borax."]
[null,null,null,null,null,null,null,null,null,null,null,null,null,null,"Sapota (7 x 8 m)1 year",null,"Sapota (7 x 8 m)","1 year",56,30,1.5,0,5,90,55,45,20,20,"Apply all the fertilizer at a distance of 45 cm from trunk around the tree in a trench of 15 cm depth in the month of June-July."]
[null,null,null,null,null,null,null,null,null,null,null,null,null,null,"Sapota (7 x 8 m)2 year",null,"Sapota (7 x 8 m)","2 year",56,40,1.65,0,5,180,110,90,40,40,"Apply all the fertilizer at a distance of 45 cm from trunk around the tree in a trench of 15 cm depth in the month of June-July."]
[null,null,null,null,null,null,null,null,null,null,null,null,null,null,"Sapota (7 x 8 m)3 year",null,"Sapota (7 x 8 m)","3 year",56,50,1.7999999999999998,0,5,270,165,135,60,60,"Apply all the fertilizer at a distance of 45 cm from trunk around the tree in a trench of 15 cm depth in the month of June-July."]
[null,null,null,null,null,null,null,null,null,null,null,null,null,null,"Sapota (7 x 8 m)4 year",null,"Sapota (7 x 8 m)","4 year",56,60,1.9499999999999997,0,5,360,220,180,80,80,"Apply all the fertilizer at a distance of 45 cm from trunk around the tree in a trench of 15 cm depth in the month of June-July."]
[null,null,null,null,null,null,null,null,null,null,null,null,null,null,"Sapota (7 x 8 m)5 year",null,"Sapota (7 x 8 m)","5 year",56,70,2.0999999999999996,0,5,450,275,225,100,100,"Apply full dose of FYM, karanja cake, zinc sulphate, borax, lime, 50 % each of urea, DAP, MOP in June another 50 % urea, DAP, MOP in September."]
[null,null,null,null,null,null,null,null,null,null,null,null,null,null,"Sapota (7 x 8 m)6 year",null,"Sapota (7 x 8 m)","6 year",56,80,2.2499999999999996,0,5,540,330,270,120,120,"Apply full dose of FYM, karanja cake, zinc sulphate, borax, lime, 50 % each of urea, DAP, MOP in June another 50 % urea, DAP, MOP in September."]
[null,null,null,null,null,null,null,null,null,null,null,null,null,null,"Sapota (7 x 8 m)7 year",null,"Sapota (7 x 8 m)","7 year",56,90,2.3999999999999995,0,5,630,385,315,140,140,"Apply full dose of FYM, karanja cake, zinc sulphate, borax, lime, 50 % each of urea, DAP, MOP in June another 50 % urea, DAP, MOP in September."]
[null,null,null,null,null,null,null,null,null,null,null,null,null,null,"Sapota (7 x 8 m)8 year",null,"Sapota (7 x 8 m)","8 year",56,100,2.5499999999999994,0,5,720,440,360,160,160,"Apply full dose of FYM, karanja cake, zinc sulphate, borax, lime, 50 % each of urea, DAP, MOP in June another 50 % urea, DAP, MOP in September."]
[null,null,null,null,null,null,null,null,null,null,null,null,null,null,"Sapota (7 x 8 m)9 year",null,"Sapota (7 x 8 m)","9 year",56,100,3,0,5,810,495,405,180,180,"Apply full dose of FYM, karanja cake, zinc sulphate, borax, lime, 50 % each of urea, DAP, MOP in June another 50 % urea, DAP, MOP in September."]
[null,null,null,null,null,null,null,null,null,null,null,null,null,null,"Sapota (7 x 8 m)10 year",null,"Sapota (7 x 8 m)","10 year",56,100,4,0,5,900,550,450,200,200,"Apply recommended dose at a distance of 100 cm from trunk around the tree in a trench of 15 cm depth."]
[null,null,null,null,null,null,null,null,null,null,null,null,null,null,"Sapota (7 x 8 m)11 year",null,"Sapota (7 x 8 m)","11 year",56,100,4,0,5,900,550,450,200,200,"Apply recommended dose at a distance of 100 cm from trunk around the tree in a trench of 15 cm depth."]
[null,null,null,null,null,null,null,null,null,null,null,null,null,null,"Sapota (7 x 8 m)12 year",null,"Sapota (7 x 8 m)","12 year",56,100,4,0,5,900,550,450,200,200,"Apply recommended dose at a distance of 100 cm from trunk around the tree in a trench of 15 cm depth."]
[null,null,null,null,null,null,null,null,null,null,null,null,null,null,"Sapota (7 x 8 m)13 year",null,"Sapota (7 x 8 m)","13 year",56,100,4,0,5,900,550,450,200,200,"Apply recommended dose at a distance of 100 cm from trunk around the tree in a trench of 15 cm depth."]
[null,null,null,null,null,null,null,null,null,null,null,null,null,null,{"$f":"CONCATENATE(Q70,R70)","v":"Sapota (7 x 8 m)14 year"},null,"Sapota (7 x 8 m)","14 year",56,100,4,0,5,900,550,450,200,200,"Apply recommended dose at a distance of 100 cm from trunk around the tree in a trench of 15 cm depth."]
[null,null,null,null,null,null,null,null,null,null,null,null,null,null,"Sapota (7 x 8 m)15 year",null,"Sapota (7 x 8 m)","15 year",56,100,4,0,5,900,550,450,200,200,"Apply recommended dose at a distance of 100 cm from trunk around the tree in a trench of 15 cm depth."]
[null,null,null,null,null,null,null,null,null,null,null,null,null,null,"Sapota (7 x 8 m)16 year",null,"Sapota (7 x 8 m)","16 year",56,100,4,0,5,900,550,450,200,200,"Apply recommended dose at a distance of 100 cm from trunk around the tree in a trench of 15 cm depth."]
[null,null,null,null,null,null,null,null,null,null,null,null,null,null,"Aonla (8 x 10 m)Planting",null,"Aonla (8 x 10 m)","Planting",80,30,1,1,5,50,50,50,10,10,"Dig pits size of 90cm x 90cm x 90 cm. Add and mix  FYM,  neem or karanj cake, bone meal,  lime with top soil of dug out pit and fill the pit at the start of rain. After 2-3 rains, plant the saplings with the addition of 50g urea, 50g DAP, 50g MOP, 10 g zinc sulphate, 10 g borax."]
[null,null,null,null,null,null,null,null,null,null,null,null,null,null,"Aonla (8 x 10 m)1 year",null,"Aonla (8 x 10 m)","1 year",80,30,1.5,0,5,175,110,170,20,20,"Apply all the fertilizer at a distance of 45 cm from trunk around the tree in a trench of 15 cm depth in the month of June-July."]
[null,null,null,null,null,null,null,null,null,null,null,null,null,null,"Aonla (8 x 10 m)2 year",null,"Aonla (8 x 10 m)","2 year",80,35,1.65,0,5,350,220,340,40,40,"Apply all the fertilizer at a distance of 45 cm from trunk around the tree in a trench of 15 cm depth in the month of June-July."]
[null,null,null,null,null,null,null,null,null,null,null,null,null,null,"Aonla (8 x 10 m)3 year",null,"Aonla (8 x 10 m)","3 year",80,40,1.7999999999999998,0,5,525,330,510,60,60,"Apply all the fertilizer at a distance of 45 cm from trunk around the tree in a trench of 15 cm depth in the month of June-July."]
[null,null,null,null,null,null,null,null,null,null,null,null,null,null,"Aonla (8 x 10 m)4 year",null,"Aonla (8 x 10 m)","4 year",80,45,1.9499999999999997,0,5,700,440,680,80,80,"Apply all the fertilizer at a distance of 45 cm from trunk around the tree in a trench of 15 cm depth in the month of June-July."]
[null,null,null,null,null,null,null,null,null,null,null,null,null,null,"Aonla (8 x 10 m)5 year",null,"Aonla (8 x 10 m)","5 year",80,50,2.0999999999999996,0,5,875,550,850,100,100,"Apply full dose of FYM, DAP, MOP and ½ dose of urea in January-February before flowering one meter away from the trunk in 15cm deep trench and cover with soil. Apply remaining ½ dose of urea in July-August."]
[null,null,null,null,null,null,null,null,null,null,null,null,null,null,"Aonla (8 x 10 m)6 year",null,"Aonla (8 x 10 m)","6 year",80,55,2.2499999999999996,0,5,1050,660,1020,120,120,"Apply full dose of FYM, DAP, MOP and ½ dose of urea in January-February before flowering one meter away from the trunk in 15cm deep trench and cover with soil. Apply remaining ½ dose of urea in July-August."]
[null,null,null,null,null,null,null,null,null,null,null,null,null,null,"Aonla (8 x 10 m)7 year",null,"Aonla (8 x 10 m)","7 year",80,60,2.3999999999999995,0,5,1225,770,1190,140,140,"Apply full dose of FYM, DAP, MOP and ½ dose of urea in January-February before flowering one meter away from the trunk in 15cm deep trench and cover with soil. Apply remaining ½ dose of urea in July-August."]
[null,null,null,null,null,null,null,null,null,null,null,null,null,null,"Aonla (8 x 10 m)8 year",null,"Aonla (8 x 10 m)","8 year",80,65,2.5499999999999994,0,5,1400,880,1360,160,160,"Apply full dose of FYM, DAP, MOP and ½ dose of urea in January-February before flowering one meter away from the trunk in 15cm deep trench and cover with soil. Apply remaining ½ dose of urea in July-August."]
[null,null,null,null,null,null,null,null,null,null,null,null,null,null,"Aonla (8 x 10 m)9 year",null,"Aonla (8 x 10 m)","9 year",80,70,2.6999999999999993,0,5,1575,990,1530,180,180,"Apply full dose of FYM, DAP, MOP and ½ dose of urea in January-February before flowering one meter away from the trunk in 15cm deep trench and cover with soil. Apply remaining ½ dose of urea in July-August."]
[null,null,null,null,null,null,null,null,null,null,null,null,null,null,"Aonla (8 x 10 m)10 year",null,"Aonla (8 x 10 m)","10 year",80,100,4,0,5,1750,1100,1700,200,200,"Apply recommended dose at a distance of 100 cm from trunk around the tree in a trench of 15 cm depth."]
[null,null,null,null,null,null,null,null,null,null,null,null,null,null,"Aonla (8 x 10 m)11 year",null,"Aonla (8 x 10 m)","11 year",80,100,4,0,5,1750,1100,1700,200,200,"Apply recommended dose at a distance of 100 cm from trunk around the tree in a trench of 15 cm depth."]
[null,null,null,null,null,null,null,null,null,null,null,null,null,null,"Aonla (8 x 10 m)12 year",null,"Aonla (8 x 10 m)","12 year",80,100,4,0,5,1750,1100,1700,200,200,"Apply recommended dose at a distance of 100 cm from trunk around the tree in a trench of 15 cm depth."]
[null,null,null,null,null,null,null,null,null,null,null,null,null,null,"Aonla (8 x 10 m)13 year",null,"Aonla (8 x 10 m)","13 year",80,100,4,0,5,1750,1100,1700,200,200,"Apply recommended dose at a distance of 100 cm from trunk around the tree in a trench of 15 cm depth."]
[null,null,null,null,null,null,null,null,null,null,null,null,null,null,"Aonla (8 x 10 m)14 year",null,"Aonla (8 x 10 m)","14 year",80,100,4,0,5,1750,1100,1700,200,200,"Apply recommended dose at a distance of 100 cm from trunk around the tree in a trench of 15 cm depth."]
[null,null,null,null,null,null,null,null,null,null,null,null,null,null,"Aonla (8 x 10 m)15 year",null,"Aonla (8 x 10 m)","15 year",80,100,4,0,5,1750,1100,1700,200,200,"Apply recommended dose at a distance of 100 cm from trunk around the tree in a trench of 15 cm depth."]
[null,null,null,null,null,null,null,null,null,null,null,null,null,null,"Aonla (8 x 10 m)16 year",null,"Aonla (8 x 10 m)","16 year",80,100,4,0,5,1750,1100,1700,200,200,"Apply recommended dose at a distance of 100 cm from trunk around the tree in a trench of 15 cm depth."]
[null,null,null,null,null,null,null,null,null,null,null,null,null,null,"Orange  (5 x 5 m)Planting",null,"Orange  (5 x 5 m)","Planting",25,30,1,1,5,0,100,0,10,10,"Dig pits of size 60cm x 60cm x 60 cm. add and mix  FYM,  neem or karanj cake, bone meal,  lime with top soil of dug out pit and fill the pit at the start of rain. After 2-3 rains, saplings planted with the add 100g DAP, 10 g zinc sulphate and 10 g borax."]
[null,null,null,null,null,null,null,null,null,null,null,null,null,null,"Orange  (5 x 5 m)1 year",null,"Orange  (5 x 5 m)","1 year",25,30,1.5,0,5,130,52,60,10,10,"Apply all the fertilizer at a distance of 45 cm from trunk around the tree in a trench of 15 cm depth in the month of June-July."]
[null,null,null,null,null,null,null,null,null,null,null,null,null,null,"Orange  (5 x 5 m)2 year",null,"Orange  (5 x 5 m)","2 year",25,35,1.65,0,5,262,104,120,20,20,"Apply all the fertilizer at a distance of 45 cm from trunk around the tree in a trench of 15 cm depth in the month of June-July."]
[null,null,null,null,null,null,null,null,null,null,null,null,null,null,"Orange  (5 x 5 m)3 year",null,"Orange  (5 x 5 m)","3 year",25,40,1.7999999999999998,0,5,394,156,180,30,30,"Apply all the fertilizer at a distance of 45 cm from trunk around the tree in a trench of 15 cm depth in the month of June-July."]
[null,null,null,null,null,null,null,null,null,null,null,null,null,null,"Orange  (5 x 5 m)4 year",null,"Orange  (5 x 5 m)","4 year",25,45,1.9499999999999997,0,5,526,208,240,40,40,"Apply all the fertilizer at a distance of 45 cm from trunk around the tree in a trench of 15 cm depth in the month of June-July."]
[null,null,null,null,null,null,null,null,null,null,null,null,null,null,"Orange  (5 x 5 m)5 year",null,"Orange  (5 x 5 m)","5 year",25,50,2.0999999999999996,0,5,658,260,300,50,50,"Apply full dose of FYM, DAP, MOP and ½ dose of urea in January-February before flowering one meter away from the trunk in 15cm deep trench and cover with soil. Apply remaining ½ dose of urea in July-August."]
[null,null,null,null,null,null,null,null,null,null,null,null,null,null,"Orange  (5 x 5 m)6 year",null,"Orange  (5 x 5 m)","6 year",25,55,2.2499999999999996,0,5,790,312,360,60,60,"Apply full dose of FYM, DAP, MOP and ½ dose of urea in January-February before flowering one meter away from the trunk in 15cm deep trench and cover with soil. Apply remaining ½ dose of urea in July-August."]
[null,null,null,null,null,null,null,null,null,null,null,null,null,null,"Orange  (5 x 5 m)7 year",null,"Orange  (5 x 5 m)","7 year",25,60,2.3999999999999995,0,5,922,364,420,70,70,"Apply full dose of FYM, DAP, MOP and ½ dose of urea in January-February before flowering one meter away from the trunk in 15cm deep trench and cover with soil. Apply remaining ½ dose of urea in July-August."]
[null,null,null,null,null,null,null,null,null,null,null,null,null,null,"Orange  (5 x 5 m)8 year",null,"Orange  (5 x 5 m)","8 year",25,65,2.5499999999999994,0,5,1054,416,480,80,80,"Apply full dose of FYM, DAP, MOP and ½ dose of urea in January-February before flowering one meter away from the trunk in 15cm deep trench and cover with soil. Apply remaining ½ dose of urea in July-August."]
[null,null,null,null,null,null,null,null,null,null,null,null,null,null,"Orange  (5 x 5 m)9 year",null,"Orange  (5 x 5 m)","9 year",25,70,2.6999999999999993,0,5,1186,468,540,90,90,"Apply full dose of FYM, DAP, MOP and ½ dose of urea in January-February before flowering one meter away from the trunk in 15cm deep trench and cover with soil. Apply remaining ½ dose of urea in July-August."]
[null,null,null,null,null,null,null,null,null,null,null,null,null,null,"Orange  (5 x 5 m)10 year",null,"Orange  (5 x 5 m)","10 year",25,100,4,0,5,1318,520,600,100,100,"Apply recommended dose at a distance of 100 cm from trunk around the tree in a trench of 15 cm depth."]
[null,null,null,null,null,null,null,null,null,null,null,null,null,null,"Orange  (5 x 5 m)11 year",null,"Orange  (5 x 5 m)","11 year",25,100,4,0,5,1318,520,600,100,100,"Apply recommended dose at a distance of 100 cm from trunk around the tree in a trench of 15 cm depth."]
[null,null,null,null,null,null,null,null,null,null,null,null,null,null,"Orange  (5 x 5 m)12 year",null,"Orange  (5 x 5 m)","12 year",25,100,4,0,5,1318,520,600,100,100,"Apply recommended dose at a distance of 100 cm from trunk around the tree in a trench of 15 cm depth."]
[null,null,null,null,null,null,null,null,null,null,null,null,null,null,"Orange  (5 x 5 m)13 year",null,"Orange  (5 x 5 m)","13 year",25,100,4,0,5,1318,520,600,100,100,"Apply recommended dose at a distance of 100 cm from trunk around the tree in a trench of 15 cm depth."]
[null,null,null,null,null,null,null,null,null,null,null,null,null,null,"Orange  (5 x 5 m)14 year",null,"Orange  (5 x 5 m)","14 year",25,100,4,0,5,1318,520,600,100,100,"Apply recommended dose at a distance of 100 cm from trunk around the tree in a trench of 15 cm depth."]
[null,null,null,null,null,null,null,null,null,null,null,null,null,null,"Orange  (5 x 5 m)15 year",null,"Orange  (5 x 5 m)","15 year",25,100,4,0,5,1318,520,600,100,100,"Apply recommended dose at a distance of 100 cm from trunk around the tree in a trench of 15 cm depth."]
[null,null,null,null,null,null,null,null,null,null,null,null,null,null,"Orange  (5 x 5 m)16 year",null,"Orange  (5 x 5 m)","16 year",25,100,4,0,5,1318,520,600,100,100,"Apply recommended dose at a distance of 100 cm from trunk around the tree in a trench of 15 cm depth."]
[null,null,null,null,null,null,null,null,null,null,null,null,null,null,"Ber (8 x 8m)Planting",null,"Ber (8 x 8m)","Planting",64,50,1,1,5,0,100,0,10,10,"In each pit size of 60cm x 60cm x 60 cm, add and mix  FYM,  neem or karanj cake, bone meal,  lime with top soil of dug out pit and fill the pit at the start of rain. After 2-3 rains, saplings planted with the add 100g DAP, 10 g zinc sulphate, 10 g borax."]
[null,null,null,null,null,null,null,null,null,null,null,null,null,null,"Ber (8 x 8m)1 year",null,"Ber (8 x 8m)","1 year",64,10,1.5,0,5,173,122,80,10,10,"Apply all the fertilizer at a distance of 45 cm from trunk around the tree in a trench of 15 cm depth in the month of June-July."]
[null,null,null,null,null,null,null,null,null,null,null,null,null,null,"Ber (8 x 8m)2 year",null,"Ber (8 x 8m)","2 year",64,20,1.5,0,5,346,244,160,20,20,"Apply all the fertilizer at a distance of 45 cm from trunk around the tree in a trench of 15 cm depth in the month of June-July."]
[null,null,null,null,null,null,null,null,null,null,null,null,null,null,"Ber (8 x 8m)3 year",null,"Ber (8 x 8m)","3 year",64,25,1.5,0,5,870,590,200,30,30,"Apply full dose of FYM, ½ dose of urea, DAP, MOP, zinc sulphate, borax in the month of June-July at a distance of 100 cm from trunk around the tree in a trench of 15 cm depth. Another ½ dose of urea in November-December."]
[null,null,null,null,null,null,null,null,null,null,null,null,null,null,"Ber (8 x 8m)4 year",null,"Ber (8 x 8m)","4 year",64,25,1.5,0,5,870,590,200,30,30,"Apply full dose of FYM, ½ dose of urea, DAP, MOP, zinc sulphate, borax in the month of June-July at a distance of 100 cm from trunk around the tree in a trench of 15 cm depth. Another ½ dose of urea in November-December."]
[null,null,null,null,null,null,null,null,null,null,null,null,null,null,"Ber (8 x 8m)5 year",null,"Ber (8 x 8m)","5 year",64,30,3,0,5,962,610,250,50,50,"Apply full dose of FYM, ½ dose of urea, DAP, MOP, zinc sulphate, borax in the month of June-July at a distance of 100 cm from trunk around the tree in a trench of 15 cm depth. Another ½ dose of urea in November-December."]
[null,null,null,null,null,null,null,null,null,null,null,null,null,null,"Ber (8 x 8m)6 year",null,"Ber (8 x 8m)","6 year",64,30,3,0,5,962,610,250,50,50,"Apply full dose of FYM, ½ dose of urea, DAP, MOP, zinc sulphate, borax in the month of June-July at a distance of 100 cm from trunk around the tree in a trench of 15 cm depth. Another ½ dose of urea in November-December."]
[null,null,null,null,null,null,null,null,null,null,null,null,null,null,"Ber (8 x 8m)7 year",null,"Ber (8 x 8m)","7 year",64,30,3,0,5,962,610,250,50,50,"Apply full dose of FYM, ½ dose of urea, DAP, MOP, zinc sulphate, borax in the month of June-July at a distance of 100 cm from trunk around the tree in a trench of 15 cm depth. Another ½ dose of urea in November-December."]
[null,null,null,null,null,null,null,null,null,null,null,null,null,null,"Ber (8 x 8m)8 year",null,"Ber (8 x 8m)","8 year",64,30,3,0,5,962,610,250,50,50,"Apply full dose of FYM, ½ dose of urea, DAP, MOP, zinc sulphate, borax in the month of June-July at a distance of 100 cm from trunk around the tree in a trench of 15 cm depth. Another ½ dose of urea in November-December."]
[null,null,null,null,null,null,null,null,null,null,null,null,null,null,"Ber (8 x 8m)9 year",null,"Ber (8 x 8m)","9 year",64,30,3,0,5,962,610,250,50,50,"Apply full dose of FYM, ½ dose of urea, DAP, MOP, zinc sulphate, borax in the month of June-July at a distance of 100 cm from trunk around the tree in a trench of 15 cm depth. Another ½ dose of urea in November-December."]
[null,null,null,null,null,null,null,null,null,null,null,null,null,null,"Ber (8 x 8m)10 year",null,"Ber (8 x 8m)","10 year",64,30,3,0,5,962,610,250,50,50,"Apply full dose of FYM, ½ dose of urea, DAP, MOP, zinc sulphate, borax in the month of June-July at a distance of 100 cm from trunk around the tree in a trench of 15 cm depth. Another ½ dose of urea in November-December."]
[null,null,null,null,null,null,null,null,null,null,null,null,null,null,"Ber (8 x 8m)11 year",null,"Ber (8 x 8m)","11 year",64,30,3,0,5,962,610,250,50,50,"Apply full dose of FYM, ½ dose of urea, DAP, MOP, zinc sulphate, borax in the month of June-July at a distance of 100 cm from trunk around the tree in a trench of 15 cm depth. Another ½ dose of urea in November-December."]
[null,null,null,null,null,null,null,null,null,null,null,null,null,null,"Ber (8 x 8m)12 year",null,"Ber (8 x 8m)","12 year",64,30,3,0,5,962,610,250,50,50,"Apply full dose of FYM, ½ dose of urea, DAP, MOP, zinc sulphate, borax in the month of June-July at a distance of 100 cm from trunk around the tree in a trench of 15 cm depth. Another ½ dose of urea in November-December."]
[null,null,null,null,null,null,null,null,null,null,null,null,null,null,"Ber (8 x 8m)13 year",null,"Ber (8 x 8m)","13 year",64,30,3,0,5,962,610,250,50,50,"Apply full dose of FYM, ½ dose of urea, DAP, MOP, zinc sulphate, borax in the month of June-July at a distance of 100 cm from trunk around the tree in a trench of 15 cm depth. Another ½ dose of urea in November-December."]
[null,null,null,null,null,null,null,null,null,null,null,null,null,null,"Ber (8 x 8m)14 year",null,"Ber (8 x 8m)","14 year",64,30,3,0,5,962,610,250,50,50,"Apply full dose of FYM, ½ dose of urea, DAP, MOP, zinc sulphate, borax in the month of June-July at a distance of 100 cm from trunk around the tree in a trench of 15 cm depth. Another ½ dose of urea in November-December."]
[null,null,null,null,null,null,null,null,null,null,null,null,null,null,"Ber (8 x 8m)15 year",null,"Ber (8 x 8m)","15 year",64,30,3,0,5,962,610,250,50,50,"Apply full dose of FYM, ½ dose of urea, DAP, MOP, zinc sulphate, borax in the month of June-July at a distance of 100 cm from trunk around the tree in a trench of 15 cm depth. Another ½ dose of urea in November-December."]
[null,null,null,null,null,null,null,null,null,null,null,null,null,null,"Ber (8 x 8m)16 year",null,"Ber (8 x 8m)","16 year",64,30,3,0,5,962,610,250,50,50,"Apply full dose of FYM, ½ dose of urea, DAP, MOP, zinc sulphate, borax in the month of June-July at a distance of 100 cm from trunk around the tree in a trench of 15 cm depth. Another ½ dose of urea in November-December."]
[null,null,null,null,null,null,null,null,null,null,null,null,null,null,"Peach (5 x 5m)Planting",null,"Peach (5 x 5m)","Planting",25,30,1,1,5,120,87,67,10,10,"Dig pits of size 90cm x 90cm x 90 cm, add and mix  FYM,  neem or karanj cake, bone meal,  lime with top soil of dug out pit and fill the pit at the start of rain. After 2-3 rains, plant the saplings with addition of recommended does of urea, DAP, MOP, zinc sulphate and  borax."]
[null,null,null,null,null,null,null,null,null,null,null,null,null,null,"Peach (5 x 5m)1 year",null,"Peach (5 x 5m)","1 year",25,10,1.5,0,5,120,87,67,10,10,"Apply all the fertilizer at a distance of 45 cm from trunk around the tree in a trench of 15 cm depth in the month of June-July."]
[null,null,null,null,null,null,null,null,null,null,null,null,null,null,"Peach (5 x 5m)2 year",null,"Peach (5 x 5m)","2 year",25,20,1.65,0,5,240,174,134,20,20,"Apply all the fertilizer at a distance of 45 cm from trunk around the tree in a trench of 15 cm depth in the month of June-July."]
[null,null,null,null,null,null,null,null,null,null,null,null,null,null,"Peach (5 x 5m)3 year",null,"Peach (5 x 5m)","3 year",25,30,1.7999999999999998,0,5,360,261,201,30,30,"Apply all the fertilizer at a distance of 45 cm from trunk around the tree in a trench of 15 cm depth in the month of June-July."]
[null,null,null,null,null,null,null,null,null,null,null,null,null,null,"Peach (5 x 5m)4 year",null,"Peach (5 x 5m)","4 year",25,40,1.9499999999999997,0,5,480,348,268,40,40,"Apply all the fertilizer at a distance of 45 cm from trunk around the tree in a trench of 15 cm depth in the month of June-July."]
[null,null,null,null,null,null,null,null,null,null,null,null,null,null,"Peach (5 x 5m)5 year",null,"Peach (5 x 5m)","5 year",25,50,2.0999999999999996,0,5,600,435,335,50,50,"Apply full dose of FYM, ½ dose of urea, DAP, MOP, zinc sulphate, borax in the month of June-July at a distance of 100 cm from trunk around the tree in a trench of 15 cm depth. Another ½ dose of urea in November-December."]
[null,null,null,null,null,null,null,null,null,null,null,null,null,null,"Peach (5 x 5m)6 year",null,"Peach (5 x 5m)","6 year",25,60,3,0,5,720,522,402,60,60,"Apply full dose of FYM, ½ dose of urea, DAP, MOP, zinc sulphate, borax in the month of June-July at a distance of 100 cm from trunk around the tree in a trench of 15 cm depth. Another ½ dose of urea in November-December."]
[null,null,null,null,null,null,null,null,null,null,null,null,null,null,"Peach (5 x 5m)7 year",null,"Peach (5 x 5m)","7 year",25,60,3,0,5,720,522,402,60,60,"Apply full dose of FYM, ½ dose of urea, DAP, MOP, zinc sulphate, borax in the month of June-July at a distance of 100 cm from trunk around the tree in a trench of 15 cm depth. Another ½ dose of urea in November-December."]
[null,null,null,null,null,null,null,null,null,null,null,null,null,null,"Peach (5 x 5m)8 year",null,"Peach (5 x 5m)","8 year",25,60,3,0,5,720,522,402,60,60,"Apply full dose of FYM, ½ dose of urea, DAP, MOP, zinc sulphate, borax in the month of June-July at a distance of 100 cm from trunk around the tree in a trench of 15 cm depth. Another ½ dose of urea in November-December."]
[null,null,null,null,null,null,null,null,null,null,null,null,null,null,"Peach (5 x 5m)9 year",null,"Peach (5 x 5m)","9 year",25,60,3,0,5,720,522,402,60,60,"Apply full dose of FYM, ½ dose of urea, DAP, MOP, zinc sulphate, borax in the month of June-July at a distance of 100 cm from trunk around the tree in a trench of 15 cm depth. Another ½ dose of urea in November-December."]
[null,null,null,null,null,null,null,null,null,null,null,null,null,null,{"$f":"CONCATENATE(Q134,R134)","v":"Peach (5 x 5m)10 year"},null,"Peach (5 x 5m)","10 year",25,60,3,0,5,720,522,402,60,60,"Apply full dose of FYM, ½ dose of urea, DAP, MOP, zinc sulphate, borax in the month of June-July at a distance of 100 cm from trunk around the tree in a trench of 15 cm depth. Another ½ dose of urea in November-December."]
[null,null,null,null,null,null,null,null,null,null,null,null,null,null,"Peach (5 x 5m)11 year",null,"Peach (5 x 5m)","11 year",25,60,3,0,5,720,522,402,60,60,"Apply full dose of FYM, ½ dose of urea, DAP, MOP, zinc sulphate, borax in the month of June-July at a distance of 100 cm from trunk around the tree in a trench of 15 cm depth. Another ½ dose of urea in November-December."]
[null,null,null,null,null,null,null,null,null,null,null,null,null,null,"Peach (5 x 5m)12 year",null,"Peach (5 x 5m)","12 year",25,60,3,0,5,720,522,402,60,60,"Apply full dose of FYM, ½ dose of urea, DAP, MOP, zinc sulphate, borax in the month of June-July at a distance of 100 cm from trunk around the tree in a trench of 15 cm depth. Another ½ dose of urea in November-December."]
[null,null,null,null,null,null,null,null,null,null,null,null,null,null,"Peach (5 x 5m)13 year",null,"Peach (5 x 5m)","13 year",25,60,3,0,5,720,522,402,60,60,"Apply full dose of FYM, ½ dose of urea, DAP, MOP, zinc sulphate, borax in the month of June-July at a distance of 100 cm from trunk around the tree in a trench of 15 cm depth. Another ½ dose of urea in November-December."]
[null,null,null,null,null,null,null,null,null,null,null,null,null,null,"Peach (5 x 5m)14 year",null,"Peach (5 x 5m)","14 year",25,60,3,0,5,720,522,402,60,60,"Apply full dose of FYM, ½ dose of urea, DAP, MOP, zinc sulphate, borax in the month of June-July at a distance of 100 cm from trunk around the tree in a trench of 15 cm depth. Another ½ dose of urea in November-December."]
[null,null,null,null,null,null,null,null,null,null,null,null,null,null,"Peach (5 x 5m)15 year",null,"Peach (5 x 5m)","15 year",25,60,3,0,5,720,522,402,60,60,"Apply full dose of FYM, ½ dose of urea, DAP, MOP, zinc sulphate, borax in the month of June-July at a distance of 100 cm from trunk around the tree in a trench of 15 cm depth. Another ½ dose of urea in November-December."]
[null,null,null,null,null,null,null,null,null,null,null,null,null,null,"Peach (5 x 5m)16 year",null,"Peach (5 x 5m)","16 year",25,60,3,0,5,720,522,402,60,60,"Apply full dose of FYM, ½ dose of urea, DAP, MOP, zinc sulphate, borax in the month of June-July at a distance of 100 cm from trunk around the tree in a trench of 15 cm depth. Another ½ dose of urea in November-December."]
[null,null,null,null,null,null,null,null,null,null,null,null,null,null,"Cashew (7 x 8m)Planting",null,"Cashew (7 x 8m)","Planting",56,15,1,1,5,0,100,0,10,10,"Dig pits of size 90cm x 90cm x 90 cm, add and mix  FYM,  neem or karanj cake, bone meal,  lime with top soil of dug out pit and fill the pit at the start of rain. After 2-3 rains, saplings planted with the add 100g DAP, 10 g zinc sulphate, 10 g borax."]
[null,null,null,null,null,null,null,null,null,null,null,null,null,null,"Cashew (7 x 8m)1 year",null,"Cashew (7 x 8m)","1 year",56,15,1.5,0,5,170,80,70,10,10,"Apply all the fertilizer at a distance of 45 cm from trunk around the tree in a trench of 15 cm depth in the month of June-July."]
[null,null,null,null,null,null,null,null,null,null,null,null,null,null,"Cashew (7 x 8m)2 year",null,"Cashew (7 x 8m)","2 year",56,30,2.5,0,5,340,160,140,20,20,"Apply all the fertilizer at a distance of 45 cm from trunk around the tree in a trench of 15 cm depth in the month of June-July."]
[null,null,null,null,null,null,null,null,null,null,null,null,null,null,"Cashew (7 x 8m)3 year",null,"Cashew (7 x 8m)","3 year",56,40,3,0,5,910,240,200,50,50,"Apply full dose of FYM, ½ dose of urea, DAP, MOP, zinc sulphate, borax in the month of May-June at a distance of 45 cm from trunk around the tree in a trench of 15 cm depth. Apply remaining  ½ dose of urea in September-October."]
[null,null,null,null,null,null,null,null,null,null,null,null,null,null,"Cashew (7 x 8m)4 year",null,"Cashew (7 x 8m)","4 year",56,40,3,0,5,910,240,200,50,50,"Apply full dose of FYM, ½ dose of urea, DAP, MOP, zinc sulphate, borax in the month of May-June at a distance of 45 cm from trunk around the tree in a trench of 15 cm depth. Apply remaining  ½ dose of urea in September-October."]
[null,null,null,null,null,null,null,null,null,null,null,null,null,null,"Cashew (7 x 8m)5 year",null,"Cashew (7 x 8m)","5 year",56,40,3,0,5,910,240,200,50,50,"Apply full dose of FYM, ½ dose of urea, DAP, MOP, zinc sulphate, borax in the month of May-June at a distance of 45 cm from trunk around the tree in a trench of 15 cm depth. Apply remaining  ½ dose of urea in September-October."]
[null,null,null,null,null,null,null,null,null,null,null,null,null,null,"Cashew (7 x 8m)6 year",null,"Cashew (7 x 8m)","6 year",56,40,3,0,5,910,240,200,50,50,"Apply full dose of FYM, ½ dose of urea, DAP, MOP, zinc sulphate, borax in the month of May-June at a distance of 45 cm from trunk around the tree in a trench of 15 cm depth. Apply remaining  ½ dose of urea in September-October."]
[null,null,null,null,null,null,null,null,null,null,null,null,null,null,"Cashew (7 x 8m)7 year",null,"Cashew (7 x 8m)","7 year",56,40,3,0,5,910,240,200,50,50,"Apply full dose of FYM, ½ dose of urea, DAP, MOP, zinc sulphate, borax in the month of May-June at a distance of 45 cm from trunk around the tree in a trench of 15 cm depth. Apply remaining  ½ dose of urea in September-October."]
[null,null,null,null,null,null,null,null,null,null,null,null,null,null,"Cashew (7 x 8m)8 year",null,"Cashew (7 x 8m)","8 year",56,40,3,0,5,910,240,200,50,50,"Apply full dose of FYM, ½ dose of urea, DAP, MOP, zinc sulphate, borax in the month of May-June at a distance of 45 cm from trunk around the tree in a trench of 15 cm depth. Apply remaining  ½ dose of urea in September-October."]
[null,null,null,null,null,null,null,null,null,null,null,null,null,null,"Cashew (7 x 8m)9 year",null,"Cashew (7 x 8m)","9 year",56,40,3,0,5,910,240,200,50,50,"Apply full dose of FYM, ½ dose of urea, DAP, MOP, zinc sulphate, borax in the month of May-June at a distance of 45 cm from trunk around the tree in a trench of 15 cm depth. Apply remaining  ½ dose of urea in September-October."]
[null,null,null,null,null,null,null,null,null,null,null,null,null,null,"Cashew (7 x 8m)10 year",null,"Cashew (7 x 8m)","10 year",56,40,3,0,5,910,240,200,50,50,"Apply full dose of FYM, ½ dose of urea, DAP, MOP, zinc sulphate, borax in the month of May-June at a distance of 45 cm from trunk around the tree in a trench of 15 cm depth. Apply remaining  ½ dose of urea in September-October."]
[null,null,null,null,null,null,null,null,null,null,null,null,null,null,"Cashew (7 x 8m)11 year",null,"Cashew (7 x 8m)","11 year",56,40,3,0,5,910,240,200,50,50,"Apply full dose of FYM, ½ dose of urea, DAP, MOP, zinc sulphate, borax in the month of May-June at a distance of 45 cm from trunk around the tree in a trench of 15 cm depth. Apply remaining  ½ dose of urea in September-October."]
[null,null,null,null,null,null,null,null,null,null,null,null,null,null,"Cashew (7 x 8m)12 year",null,"Cashew (7 x 8m)","12 year",56,40,3,0,5,910,240,200,50,50,"Apply full dose of FYM, ½ dose of urea, DAP, MOP, zinc sulphate, borax in the month of May-June at a distance of 45 cm from trunk around the tree in a trench of 15 cm depth. Apply remaining  ½ dose of urea in September-October."]
[null,null,null,null,null,null,null,null,null,null,null,null,null,null,"Cashew (7 x 8m)13 year",null,"Cashew (7 x 8m)","13 year",56,40,3,0,5,910,240,200,50,50,"Apply full dose of FYM, ½ dose of urea, DAP, MOP, zinc sulphate, borax in the month of May-June at a distance of 45 cm from trunk around the tree in a trench of 15 cm depth. Apply remaining  ½ dose of urea in September-October."]
[null,null,null,null,null,null,null,null,null,null,null,null,null,null,"Cashew (7 x 8m)14 year",null,"Cashew (7 x 8m)","14 year",56,40,3,0,5,910,240,200,50,50,"Apply full dose of FYM, ½ dose of urea, DAP, MOP, zinc sulphate, borax in the month of May-June at a distance of 45 cm from trunk around the tree in a trench of 15 cm depth. Apply remaining  ½ dose of urea in September-October."]
[null,null,null,null,null,null,null,null,null,null,null,null,null,null,"Cashew (7 x 8m)15 year",null,"Cashew (7 x 8m)","15 year",56,40,3,0,5,910,240,200,50,50,"Apply full dose of FYM, ½ dose of urea, DAP, MOP, zinc sulphate, borax in the month of May-June at a distance of 45 cm from trunk around the tree in a trench of 15 cm depth. Apply remaining  ½ dose of urea in September-October."]
[null,null,null,null,null,null,null,null,null,null,null,null,null,null,"Cashew (7 x 8m)16 year",null,"Cashew (7 x 8m)","16 year",56,40,3,0,5,910,240,200,50,50,"Apply full dose of FYM, ½ dose of urea, DAP, MOP, zinc sulphate, borax in the month of May-June at a distance of 45 cm from trunk around the tree in a trench of 15 cm depth. Apply remaining  ½ dose of urea in September-October."]

{"sheet":"FertiSel","index":8,"n_rows":53,"n_cols":28,"rows_kept":53,"cut":false,"hidden":false,"merged":[[2,11,2,17],[16,2,16,4],[10,2,10,4],[1,2,2,6]]}
[]
[null,null,"Fertilizer Source Selection"]
[null,null,null,null,null,null,null,null,null,"Rice-Midland",null,"Fertilizer requirement",null,null,null,null,null,null,null,null,"N","P","K","Zn","B","S","Lime","Cost/kg"]
[null,null,null,null,null,null,null,null,null,null,null,"N","P","K","ZnSo4","B","S","Lime"]
[null,null,"NPK complex ",null,null,null,null,null,null,null,"Req Nutr",{"$f":"IF(STRCheck!I9=1,SoilData!M6,SoilData!M5)","v":100},{"$f":"IF(STRCheck!I9=1,SoilData!N6,SoilData!N5)","v":50},{"$f":"IF(STRCheck!I9=1,SoilData!O6,SoilData!O5)","v":25},{"$f":"IF(STRCheck!I9=1,SoilData!P6,SoilData!P5)","v":6.5625},{"$f":"IF(STRCheck!I9=1,SoilData!Q6,SoilData!Q5)","v":1.96875},{"$f":"IF(STRCheck!I9=1,SoilData!R6,SoilData!R5)","v":0},{"$f":"IF(STRCheck!I9=1,SoilData!S6,SoilData!S5)","v":400},null,"NPK fertilizers"]
[null,null,null,null,null,null,null,null,2,"NPK",1,{"$f":"M6*U6/100","v":44.833220420037463},{"$f":"M5/(V6/100)","v":249.07344677798588},{"$f":"M6*W6/100","v":0},null,null,null,null,1,"Diammonium Phosphate",18,{"$f":"46*0.4364","v":20.074400000000001},0,0,0,null,0,{"$f":"1100/50","v":22}]
[null,null,"Nitrogenous ",null,null,null,null,null,null,null,2,{"$f":"M7*U7/100","v":42.965169569202573},{"$f":"M5/(V7/100)","v":358.04307974335472},{"$f":"M7*W7/100","v":47.548120989917507},null,null,null,null,2,"Complex 12:32:16",12,{"$f":"32*0.4364","v":13.9648},{"$f":"16*0.83","v":13.28},0,0,null,0,{"$f":"1150/50","v":23}]
[null,null,null,null,null,null,null,null,null,null,3,{"$f":"M8*U8/100","v":46.022353714661406},{"$f":"M5/(V8/100)","v":328.73109796186719},{"$f":"M8*W8/100","v":38.198553583168966},null,null,null,null,3,"Complex 14:35:14",14,15.21,11.62,0,0,null,0,{"$f":"1165/50","v":23.3}]
[null,null,"Potassic ",null,null,null,null,null,null,null,4,0,{"$f":"M5/(V9/100)","v":719.05200184077307},0,null,null,{"$f":"M9*(Z9/100)","v":79.09572020248504},null,4,"Single Super Phosphate",0,{"$f":"16*0.4346","v":6.9535999999999998},0,null,null,11,null,{"$f":"428/50","v":8.56}]
[null,null,null,null,null,null,null,null,null,null,"Apply",{"$f":"LOOKUP(I6,K6:K9,L6:L9)","v":42.965169569202573},{"$f":"LOOKUP(I6,K6:K9,M6:M9)","v":358.04307974335472},{"$f":"LOOKUP(I6,K6:K9,N6:N9)","v":47.548120989917507},{"$f":"LOOKUP(I6,K6:K9,O6:O9)","v":0},{"$f":"LOOKUP(L6,N6:N9,P6:P9)","v":0},{"$f":"LOOKUP(I6,K6:K9,Q6:Q9)","v":0},{"$f":"LOOKUP(I6,K6:K9,R6:R9)","v":0}]
[null,null,"Zinc ",null,null,null,null,null,1,"Nitrogenous","Apply",{"$f":"IF((L5-L10)/(U12/100)<0,0,(L5-L10)/(U12/100))","v":123.98876180608136},null,null,null,null,null,null,null,"Nitrogenous Fertilizer"]
[null,null,null,null,null,null,null,null,1,"Potassic",1,null,null,{"$f":"IF((N5-N10)/(W14/100)<0,0,(N5-N10)/(W14/100))","v":0},null,null,null,null,1,"Urea",46,0,0,0,0,null,0,{"$f":"284/50","v":5.68}]
[null,null,"Boron ",null,null,null,null,null,null,null,2,null,null,{"$f":"IF((N5-N10)/(W15/100)<0,0,(N5-N10)/(W15/100))","v":0},null,null,{"$f":"N13*(Z15/100)","v":0},null,null,"Potassic fertilizer"]
[null,null,null,null,null,null,null,null,null,null,"Apply",null,null,{"$f":"IF(LOOKUP(I12,K12:K13,N12:N13)<0,0,(LOOKUP(I12,K12:K13,N12:N13)))","v":0},null,null,{"$f":"IF(LOOKUP(I12,K12:K13,Q12:Q13)<0,0,(LOOKUP(I12,K12:K13,Q12:Q13)))","v":0},null,1,"Murate of Potassium",0,0,{"$f":"60*0.83","v":49.8},0,0,null,0,{"$f":"550/50","v":11}]
[null,null,"Sulphur",null,null,null,null,null,2,"Zink",1,null,null,null,{"$f":"O5/(X18/100)","v":31.25},null,{"$f":"O15*Z18/100","v":3.125},null,2,"Sulphate of potash",0,0,{"$f":"50*0.83","v":41.5},0,0,18,0,{"$f":"2900/50","v":58}]
[null,null,null,null,null,null,null,null,null,null,2,null,null,null,{"$f":"O5/(X19/100)","v":54.6875}]
[null,null,null,null,null,null,null,null,null,null,"Apply",null,null,null,{"$f":"IF(I15=1,O15,O16)","v":54.6875},null,null,null,null,"Zinc fertilizer"]
[null,null,null,null,null,null,null,null,2,"Boron",1,null,null,null,null,{"$f":"P5/(Y21/100)","v":18.75},null,null,1,"Zinc Sulphate",0,0,0,21,0,{"$f":"10","v":10},0,{"$f":"2250/50","v":45}]
[null,null,null,null,null,null,null,null,null,null,2,null,null,null,null,{"$f":"P5/(Y22/100)","v":10.361842105263158},null,null,2,"Zinc (Chelated)",0,0,0,12,0,0,0,500]
[null,null,null,null,null,null,null,null,null,null,3,null,null,null,null,{"$f":"P5/(Y23/100)","v":9.84375},null,null,null,"Boron Fertilizer"]
[null,null,null,null,null,null,null,null,null,null,"Apply",null,null,null,null,{"$f":"LOOKUP(I18,K18:K20,P18:P20)","v":10.361842105263158},null,null,1,"Borax",0,0,0,0,10.5,null,0,40]
[null,null,null,null,null,null,null,null,2,"Sulphur",1,null,null,null,null,null,{"$f":"IF((Q5-Q10-Q14-Q17)/(Z25/100)<0,0,(Q5-Q10-Q14-Q17)/(Z25/100))","v":0},null,2,"Solubore",0,0,0,0,19,null,0,100]
[null,null,null,null,null,null,null,null,null,null,2,null,null,null,null,null,{"$f":"IF((Q5-Q10-Q14-Q17)/(Z26/100)<0,0,(Q5-Q10-Q14-Q17)/(Z26/100))","v":0},null,3,"Boron",0,0,0,0,20,null,0,100]
[null,null,null,null,null,null,null,null,null,null,"Apply",null,null,null,null,null,{"$f":"LOOKUP(I22,K22:K23,Q22:Q23)","v":0},null,null,"Suphur Fertilizer"]
[null,null,null,null,null,null,null,null,null,null,null,null,null,null,null,null,null,null,1,"Elemental Sulphur ",0,0,0,0,0,90,null,{"$f":"800/5","v":160}]
[null,null,null,null,null,null,null,null,null,null,null,null,null,null,null,null,null,null,2,"Ammonium Sulphate ",15,0,0,0,0,24,null,{"$f":"675/5","v":135}]
[null,null,null,null,null,null,null,null,null,"Selected Fertilizers",null,null,null,null,null,null,null,null,null,"Lime",null,null,null,null,null,null,null,5]
[null,null,null,null,null,null,null,null,null,"FYM/Compost",null,{"$f":"AB28","v":3},null,null,null,null,null,null,null,"FYP/Compost",null,null,null,null,null,null,null,3]
[null,null,null,null,null,null,null,null,null,"Vermicompost",null,{"$f":"AB31","v":7},null,null,null,null,null,null,null,"Neem/Karanj cake",null,null,null,null,null,null,null,20]
[null,null,null,null,null,null,null,null,null,{"$f":"LOOKUP(I6,S6:S9,T6:T9)","v":"Complex 12:32:16"},null,{"$f":"LOOKUP(I6,S6:S9,AB6:AB9)","v":23},null,null,null,null,null,null,null,"Bone meal",null,null,null,null,null,null,null,25]
[null,null,null,null,null,null,null,null,null,{"$f":"LOOKUP(I11,S12,T12)","v":"Urea"},null,{"$f":"AB12","v":5.68},null,null,null,null,null,null,null,"Vermicompost",null,null,null,null,null,null,null,7]
[null,null,null,null,null,null,null,null,null,{"$f":"LOOKUP(I12,S14:S15,T14:T15)","v":"Murate of Potassium"},null,{"$f":"LOOKUP(I12,S14:S15,AB14:AB15)","v":11}]
[null,null,null,null,null,null,null,null,null,{"$f":"LOOKUP(I15,S18:S19,T18:T19)","v":"Zinc (Chelated)"},null,{"$f":"LOOKUP(I15,S18:S19,AB18:AB19)","v":500}]
[null,null,null,null,null,null,null,null,null,{"$f":"LOOKUP(I18,S21:S23,T21:T23)","v":"Solubore"},null,{"$f":"LOOKUP(I18,S21:S23,AB21:AB23)","v":100},null,null,null,null,null,null,null,"Fertilizer","Price, Rs/kg"]
[null,null,null,null,null,null,null,null,null,{"$f":"LOOKUP(I22,S25:S26,T25:T26)","v":"Ammonium Sulphate "},null,{"$f":"LOOKUP(I22,S25:S26,AB25:AB26)","v":135},null,null,null,null,null,null,null,"Diammonium Phosphate",22]
[null,null,null,null,null,null,null,null,null,{"$f":"R4","v":"Lime"},null,{"$f":"AB27","v":5},null,null,null,null,null,null,null,"12:32:16",23]
[null,null,null,null,null,null,null,null,null,null,null,null,null,null,null,null,null,null,null,"14:35:14",23.3]
[null,null,null,null,null,null,null,null,null,null,null,null,null,null,null,null,null,null,null,"Single Super Phosphate",8.56]
[null,null,null,null,null,null,null,null,null,null,null,null,null,null,null,null,null,null,null,"Urea",5.68]
[null,null,null,null,null,null,null,null,null,null,null,null,null,null,null,null,null,null,null,"Murate of Potassium",11]
[null,null,null,null,null,null,null,null,null,null,null,null,null,null,null,null,null,null,null,"Sulphate of potash",58]
[null,null,null,null,null,null,null,null,null,null,null,null,null,null,null,null,null,null,null,"Zinc Sulphate",45]
[null,null,null,null,null,null,null,null,null,null,null,null,null,null,null,null,null,null,null,"Zinc (Chelated)",500]
[null,null,null,null,null,null,null,null,null,null,null,null,null,null,null,null,null,null,null,"Borax",40]
[null,null,null,null,null,null,null,null,null,null,null,null,null,null,null,null,null,null,null,"Solubore",100]
[null,null,null,null,null,null,null,null,null,null,null,null,null,null,null,null,null,null,null,"Boron",100]
[null,null,null,null,null,null,null,null,null,null,null,null,null,null,null,null,null,null,null,"Elemental Sulphur "]
[null,null,null,null,null,null,null,null,null,null,null,null,null,null,null,null,null,null,null,"Ammonium Sulphate "]
[null,null,null,null,null,null,null,null,null,null,null,null,null,null,null,null,null,null,null,"Lime",5]
[null,null,null,null,null,null,null,null,null,null,null,null,null,null,null,null,null,null,null,"FYP/Compost",3]
[null,null,null,null,null,null,null,null,null,null,null,null,null,null,null,null,null,null,null,"Neem/Karanj cake",20]
[null,null,null,null,null,null,null,null,null,null,null,null,null,null,null,null,null,null,null,"Bone meal",25]
[null,null,null,null,null,null,null,null,null,null,null,null,null,null,null,null,null,null,null,"Vermicompost",7]

{"sheet":"FertRiq","index":9,"n_rows":55,"n_cols":15,"rows_kept":55,"cut":false,"hidden":false,"merged":[[0,1,0,8],[32,2,32,3],[33,2,33,3],[1,2,2,7],[26,5,27,6],[26,2,27,3],[30,2,30,3],[31,2,31,3]]}
[]
[null,null,"Fertilzer Recommendation Report"]
[null,null,null,null,null,null,null,null,null,null,"Farmers area",120,"decimal"]
[]
[null,null,"Crop:",{"$f":"FertiSel!J3","v":"Rice-Midland"},null,"Area (ha):",{"$f":"L3/250","v":0.48},null,null,null,0,50,25,25]
[]
[null,null,"Fertilizer","Quantity",null,"Unit","Cost, Rs",null,null,null,{"$f":"(D15)*K5/100","v":0},{"$f":"(D15)*L5/100","v":29.757302833459526},{"$f":"(D15)*M5/100","v":14.878651416729763},{"$f":"(D15)*N5/100","v":14.878651416729763}]
[]
[null,null,{"$f":"FertiSel!J28","v":"FYM/Compost"},{"$f":"SoilData!K5/250*FertRiq!L3","v":2.4},null,"Ton",{"$f":"D9*1000*FertiSel!L28","v":7200}]
[]
[null,null,{"$f":"FertiSel!J29","v":"Vermicompost"},{"$f":"SoilData!L5/250*FertRiq!L3","v":1.44},null,"Ton",{"$f":"D11*1000*FertiSel!L29","v":10080}]
[]
[null,null,{"$f":"FertiSel!J30","v":"Complex 12:32:16"},{"$f":"FertiSel!M10/250*FertRiq!L3","v":171.86067827681026},null,"Kg",{"$f":"D13*FertiSel!L30","v":3952.7956003666359}]
[]
[null,null,{"$f":"FertiSel!J31","v":"Urea"},{"$f":"FertiSel!L11/250*FertRiq!L3","v":59.514605666919053},null,"Kg",{"$f":"D15*FertiSel!L31","v":338.04296018810021}]
[]
[null,null,{"$f":"FertiSel!J32","v":"Murate of Potassium"},{"$f":"FertiSel!N14/250*FertRiq!L3","v":0},null,"Kg",{"$f":"D17*FertiSel!L32","v":0}]
[]
[null,null,{"$f":"FertiSel!J33","v":"Zinc (Chelated)"},{"$f":"FertiSel!O17/250*FertRiq!L3","v":26.25},null,"Kg",{"$f":"D19*FertiSel!L33","v":13125}]
[]
[null,null,{"$f":"FertiSel!J34","v":"Solubore"},{"$f":"FertiSel!P21/250*FertRiq!L3","v":4.973684210526315},null,"Kg",{"$f":"D21*FertiSel!L34","v":497.3684210526315}]
[]
[null,null,{"$f":"FertiSel!J35","v":"Ammonium Sulphate "},{"$f":"FertiSel!Q24/250*FertRiq!L3","v":0},null,"Kg",{"$f":"D23*FertiSel!L35","v":0}]
[]
[null,null,"Lime",{"$f":"FertiSel!R5","v":400},null,"kg",{"$f":"D25*FertiSel!L36","v":2000}]
[]
[null,null,"Total cost of fertilizer",null,null,{"$f":"SUM(G9:G25)","v":37193.206981607371}]
[]
[]
[null,null,"Urea Fertilizer Schedule",null,null,"Quantity, Kg"]
[null,null,"Before transplanting or at time of last ploughing",null,null,{"$f":"K7","v":0},"Kg"]
[null,null,"At time of sowing/transplanting",null,null,{"$f":"L7","v":29.757302833459526},"Kg"]
[null,null,"25- 30 days after sowing ",null,null,{"$f":"M7","v":14.878651416729763},"Kg"]
[null,null,"40-50 days days after sowing ",null,null,{"$f":"N7","v":14.878651416729763},"Kg"]
[]
[]
[]
[]
[]
[]
[]
[]
[]
[]
[]
[]
[]
[]
[]
[]
[]
[null,null,null,null,null,null,null,null,null,null,null,null,null,null,"Before transplanting or at time of last ploughing"]
[null,null,null,null,null,null,null,null,null,null,null,null,null,null,"At time of sowing/transplanting"]
[null,null,null,null,null,null,null,null,null,null,null,null,null,null,"25- 30 days after sowing "]
[null,null,null,null,null,null,null,null,null,null,null,null,null,null,"40-50 days days after sowing "]

{"sheet":"FertRiqFruit","index":10,"n_rows":40,"n_cols":22,"rows_kept":40,"cut":false,"hidden":false,"merged":[[0,1,0,12],[21,2,25,11],[17,2,18,7],[17,9,18,11],[17,8,18,8],[1,2,2,11],[20,3,20,9]]}
[]
[null,null,"Fertilizer Recommendation Report"]
[null,null,null,null,null,null,null,null,null,null,null,null,null,null,"Area per plant",{"$f":"FruitCrop!S3","v":64},"m2","plot area",{"$f":"FruitCrop!F12/250*10000","v":4800},"m2","No of plants",{"$f":"S3/P3","v":75}]
[]
[null,null,"Crop:",{"$f":"FruitCrop!J6","v":"Ber (8 x 8m)"},null,"Age:",{"$f":"FruitCrop!R3","v":"4 year"},null,"Area:",{"$f":"FruitCrop!F12/250","v":0.48},"ha",null,null,null,"Cost from Ferti Sel, Rs/Kg",null,"Qtty/plant"]
[]
[null,null,"Fertilizer",null,null,null,null,"Quantity per pit","Unit","Total quantity","Unit","Cost    Rs",null,null,{"$f":"FertiSel!AB28","v":3},null,{"$f":"FruitCrop!T3","v":25},"FYM (kg)",{"$f":"$V$3*Q7","v":1875}]
[null,null,"FYM/Compost",null,null,null,null,{"$f":"Q7","v":25},"kg",{"$f":"FruitCrop!T3*(FruitCrop!F12/250)*10000/FruitCrop!S3/1000","v":1.875},"ton",{"$f":"J8*O7*1000","v":5625},null,null,{"$f":"FertiSel!AB29","v":20},null,{"$f":"FruitCrop!U3","v":1.5},"Neem/Karanj cake (kg)",112.5]
[null,null,"Neem/Karanj cake",null,null,null,null,1.5,"kg",{"$f":"FruitCrop!U3*(FruitCrop!F12/250)*10000/FruitCrop!S3","v":112.5},"kg",{"$f":"J9*O8","v":2250},null,null,{"$f":"FertiSel!AB30","v":25},null,{"$f":"FruitCrop!V3","v":0},"Bone meal (kg)",0]
[null,null,"Bone meal",null,null,null,null,0,"kg",{"$f":"FruitCrop!V3*(FruitCrop!F12/250)*10000/FruitCrop!S3","v":0},"kg",0,null,null,{"$f":"FertiSel!AB27","v":5},null,{"$f":"FruitCrop!W3","v":5},"Lime (kg)",375]
[null,null,"Lime",null,null,null,null,5,"kg",{"$f":"FruitCrop!W3*(FruitCrop!F12/250)*10000/FruitCrop!S3","v":375},"kg",1875,null,null,{"$f":"FertiSel!AB12","v":5.68},null,{"$f":"FruitCrop!X3","v":870},"Urea (g)",65250]
[null,null,"Urea- 46:0:0",null,null,null,null,870,"g",{"$f":"FruitCrop!X3/1000*(FruitCrop!F12/250)*10000/FruitCrop!S3","v":65.25},"kg",370.62,null,null,{"$f":"FertiSel!AB6","v":22},null,{"$f":"FruitCrop!Y3","v":590},"DAP (g)",44250]
[null,null,"Diammonium Phosphate - 18:46:0",null,null,null,null,590,"g",{"$f":"FruitCrop!Y3/1000*(FruitCrop!F12/250)*10000/FruitCrop!S3","v":44.249999999999993},"kg",973.49999999999989,null,null,{"$f":"FertiSel!AB14","v":11},null,{"$f":"FruitCrop!Z3","v":200},"MOP (g)",15000]
[null,null,"Murate of Potassium-0:0:60",null,null,null,null,200,"g",{"$f":"FruitCrop!Z3/1000*(FruitCrop!F12/250)*10000/FruitCrop!S3","v":15},"kg",165,null,null,{"$f":"FertiSel!AB18","v":45},null,{"$f":"FruitCrop!AA3","v":30},"Zinc sulphate (g)",2250]
[null,null,"Zinc Sulphate - 21 %",null,null,null,null,30,"g",{"$f":"FruitCrop!AA3/1000*(FruitCrop!F12/250)*10000/FruitCrop!S3","v":2.25},"kg",101.25,null,null,{"$f":"FertiSel!AB21","v":40},null,{"$f":"FruitCrop!AB3","v":30},"Borax (g)",2250]
[null,null,"Borax-10.5 %",null,null,null,null,30,"g",{"$f":"FruitCrop!AB3/1000*(FruitCrop!F12/250)*10000/FruitCrop!S3","v":2.25},"kg",90]
[null,null,null,null,null,null,null,null,null,null,null,null,null,null,null,null,"."]
[null,null,"Total cost of fertilizers, Rs.",null,null,null,null,null,null,{"$f":"SUM(L8:L17)","v":11450.37}]
[]
[]
[null,null,null,"Fertilizer application guidelines"]
[null,null,"Apply full dose of FYM, ½ dose of urea, DAP, MOP, zinc sulphate, borax in the month of June-July at a distance of 100 cm from trunk around the tree in a trench of 15 cm depth. Another ½ dose of urea in November-December."]
[]
[]
[]
[]
[]
[]
[]
[]
[]
[]
[]
[]
[]
[]
[]
[]
[]
[null,null,null,1]

{"sheet":"Sheet1","index":11,"n_rows":53,"n_cols":15,"rows_kept":53,"cut":false,"hidden":false,"merged":[]}
[null,null,null,null,null,null,null,null,null,null,null,"Before transplanting or at time of last ploughing","At time of sowing/transplanting","25- 30 days after sowing ","40-50 days days after sowing "]
[null,null,null,"Sl. No.","Crop","FYM t/ha","Vermi Compost t/ha","N","P","K","S"]
[null,null,"Arhar",1,"Arhar",3,2,25,50,25,0,0,100,0,0]
[null,null,"Black gram",2,"Black gram",3,2,25,50,25,0,0,100,0,0]
[null,null,"Chick pea",3,"Chick pea",3,2,25,50,25,0,0,100,0,0]
[null,null,"Cow pea",4,"Cow pea",3,2,20,40,20,0,50,0,50,0]
[null,null,"Field pea",5,"Field pea",3,2,25,50,25,0,50,0,50,0]
[null,null,"Green gram",6,"Green gram",3,2,20,50,25,0,0,100,0,0]
[null,null,"Lentil",7,"Lentil",3,2,25,50,25,0,0,100,0,0]
[null,null,"Maize",8,"Maize",5,3,120,60,40,0,0,50,50,0]
[null,null,"Millet",9,"Millet",5,3,40,30,20,0,0,50,50,0]
[null,null,"Rice bean",10,"Rice bean",3,3,20,40,20,0,0,100,0,0]
[null,null,"Rice-Lowland",11,"Rice-Lowland",5,3,120,60,40,0,0,50,25,25]
[null,null,"Rice-Midland",12,"Rice-Midland",5,3,80,40,20,0,0,50,25,25]
[null,null,"Rice-Upland",13,"Rice-Upland",5,3,40,20,20,0,0,50,25,25]
[null,null,"Wheat-Irrigated",14,"Wheat-Irrigated",5,3,120,60,40,0,0,50,25,25]
[null,null,"Wheat-unirrigated",15,"Wheat-unirrigated",5,3,60,30,20,0,0,50,50,0]
[]
[]
[]
[null,null,"Cabbage","19.                ","Cabbage",20,5,200,35,50,0,0,50,25,25]
[null,null,"Cauliflower","20.                ","Cauliflower",20,5,150,26,50,0,0,50,25,25]
[null,null,"Brinjal","21.                ","Brinjal",20,5,120,26,50,0,33.299999999999997,0,33.299999999999997,33.299999999999997]
[null,null,"Chilli","22.                ","Chilli",20,5,60,22,42,0,33.299999999999997,0,33.299999999999997,33.299999999999997]
[null,null,"Capsicum","23.                ","Capsicum",20,5,60,44,42,0,33.299999999999997,0,33.299999999999997,33.299999999999997]
[null,null,"Tomato","24.                ","Tomato",20,5,120,26,50,0,33.299999999999997,0,33.299999999999997,33.299999999999997]
[null,null,"Okra","25.                ","Okra",20,5,120,35,50,0,0,50,50,0]
[null,null,"French bean","26.                ","French bean",20,5,60,22,42,0,50,0,50,0]
[null,null,"Carrot","27.                ","Carrot",20,5,60,22,62,0,0,50,0,50]
[null,null,"Radish","28.                ","Radish",20,5,80,26,50,0,0,50,50,0]
[null,null,"Cucumber","29.                ","Cucumber",20,5,50,17,33,0,0,50,50,0]
[null,null,"Ridgegourd","30.                ","Ridgegourd",20,5,50,26,42,0,50,0,50,0]
[null,null,"Pointed gourd","31.                ","Pointed gourd",20,5,120,26,42,0,33.33,0,33.33,33.33]
[null,null,"Bottle gourd","32.                ","Bottle gourd",20,5,50,26,42,0,0,50,50,0]
[null,null,"Bitter Gourd","33.                ","Bitter Gourd",20,5,50,26,42,0,0,50,50,0]
[null,null,"Potato","34.                ","Potato",20,5,125,39,75,0,0,50,50,0]
[null,null,"Onion","35.                ","Onion",20,5,80,26,66,0,0,50,50,0]
[null,null,null,"36.                ","Soyabean",3,2,25,50,20,40,0,100,0,0]
[null,null,null,"37.                ","Groundnuts ",3,2,25,50,20,40,0,100,0,0]
[null,null,null,"38.                ","Til",3,2,40,20,20,0,0,50,50,0]
[null,null,null,"39.                ","Niger (surguja)",3,2,20,20,20,0,0,100,0,0]
[null,null,null,"40.                ","Sunflower",3,2,40,50,25,25,0,100,0,0]
[]
[]
[]
[null,null,"Linseed irrigated",null,"Linseed irrigated",3,2,50,30,20,20,0,50,50,0]
[null,null,"Linseed unirrigated",null,"Linseed unirrigated",3,2,30,20,20,20,0,50,50,0]
[null,null,"Mustard",null,"Mustard",3,3,50,25,25,20,0,50,50,0]
[null,null,"Soyabean",null,"Soyabean",3,2,25,50,20,40,0,100,0,0]
[null,null,"Groundnuts ",null,"Groundnuts ",3,2,25,50,20,40,0,100,0,0]
[null,null,"Til",null,"Til",3,2,40,20,20,0,0,50,50,0]
[null,null,"Niger (surguja)",null,"Niger (surguja)",3,2,20,20,20,0,0,100,0,0]
[null,null,"Sunflower",null,"Sunflower",3,2,40,50,25,25,0,100,0,0]